Workbook

Sheet Instructions
B1: Instructions
A4: This spreadsheet tool is supplied by Education Finance Support, EES for Schools. The spreadsheet may be used to assist with estimating the year end carry forward. An academy using this spreadsheet does so at their own risk whether used by an academy employee, Education Finance Support staff or anyone on the academy's behalf. Essex County Council, EES for Schools and the Education Finance Support team accept no liability for its use, the data input and any subsequent decision making or reports produced. It remains the academy's responsibility to check the source data used and the output results.
B5: A Note on Macros This spreadsheet makes use of macros to provide buttons on the screen for navigating around the spreadsheet and printing. When you open this spreadsheet you may get a warning message on the screen stating that the macros have been disabled. If this happens you will need to change the security settings in Excel. Using Macros with Office 2007 Click the Microsoft Office Button , and then click Excel Options. Click Trust Center, click Trust Center Settings, and then click Macro Settings. Select the Disable all macros with notification option. This is the default setting. Clicking this option disables macros, but notifies you upon opening a spreadsheet with macros present, and asks you if you want to enable them. This way, you can choose when to enable those macros on a case by case basis.
B6: Introduction This spreadsheet contains several pages (worksheets) that can be accessed by clicking on the grey navigation buttons (e.g. 'Summary Page'). This worksheet contains step by step instructions on using the spreadsheet. There is a Data worksheet where the data can be imported from your financial accounting system (see below). The Calculator worksheet is the main working area of the spreadsheet where you will produce your estimated cost centre balances. The Summary worksheet converts the information on the Calculator worksheet into specific balance headings. For this reason the Calculator worksheet must have been completed fully if the correct figures are to be produced on the Summary worksheet.
B8: NB: When this spreadsheet has been completed, you will have produced estimate year end balances for every cost centre on FMS6. As a result of this you may decide to complete some virements and journals to amend individual cost centre balances. Please do not enter these intended amendments on this spreadsheet as it will not accurately reflect the information on FMS6 at the point in time when the data was exported. The effect of any virements and journals made on FMS6 after completing the spreadsheet will be reflected the next time you complete the estimated year end balance spreadsheet using the updated FMS6 data.
A10: A) | B10: Exporting the Cost Centre Summary Report
A11: 1) | B11: Open FMS6 in the current financial year
A12: 2) | B12: Bring up the Cost Centre Summary by Cost Centre report on the screen by clicking on 'Reports', and selecting 'General Ledger', 'Transactions', 'Cost Centre Summary Transactions', 'Cost Centre Summary By Cost Centre' and then clicking on 'OK' on the screen that appears. The system will automatically default to select all cost centres. Print a hard copy for future reference.
A13: 3) | B13: Immediately after printing the report, click on the 'Export to Disk' icon, which can be found to the left of the 'Print' icon near the top right hand corner of the screen. NB: You may find it useful to print and export this report on a regular basis such as immediately after processing the monthly reconciliation data, even if the Estimated Year-End Balance Calculator is completed later.
A14: 4) | B14: In the window that appears, click on the diamond shaped radio button next to 'Full Report'.
A15: 5) | B15: From the drop down menu select 'Tab Separated Values Format' and then click on 'OK'.
A16: 6) | B16: Select the folder in to which you wish to export the file and give the file an appropriate name.
A17: 7) | B17: Select 'OK' to save
A19: B) | B19: Loading the Exported File on to the Estimated Year-End Balance Calculator
A20: 1) | B20: Open the Estimated Year-End Balance Calculator in Excel
A21: 2) | B21: Select 'File'
A22: 3) | B22: Select 'Open'
A23: 4) | B23: In the window that appears, select the folder in which you have saved the exported file.
A24: 5) | B24: Select 'All Files' from the drop down list that appears next to 'Files of Type:'
A25: 6) | B25: Select the exported file from the list of files in the chosen folder
A26: 7) | B26: Select 'Open'
A27: 8) | B27: In the window that appears, select 'Finish'.
A28: 9) | B28: The file will now open in excel format. Some of the columns will not be wide enough for all the text to appear, but do not worry about this.
A29: 10) | B29: Select the whole worksheet by clicking on the grey box to the left of the column header 'A' and above row header '1'. The whole worksheet will now be highlighted.
A30: 11) | B30: Select 'Edit'
A31: 12) | B31: Select 'Copy' and then minimise the spreadsheet window
A32: 13) | B32: Open the Estimated Year-end Balance Calculator spreadsheet previously saved on your computer and use the grey navigation button to bring the Data worksheet up on the screen.
A33: 14) | B33: Click on cell A1
A34: 15) | B34: Select 'Edit'
A35: 16) | B35: Select 'Paste'
A36: 17) | B36: Details of the cost centre names, allocations and balance remaining will now appear on the Calculator worksheet, which you can select by clicking on the appropriate navigation button.
A38: C) | B38: Using the Estimated Year-End Balance Calculator For the First Time
A39: 1) | B39: Bring the Calculator worksheet up on the screen. Using the hard copy of the cost centre report printed earlier, enter the time and date that the report was printed in cells G2 and G3 respectively. The time and date need to be in specific formats, HH:MM for the time (e.g. 10:15) and DD/MM/YY (e.g. 30/01/17). You can also enter the month in cell G4. It is recommended to save a copy with the month as the version name each time in order to retain a trail of updated spreadsheets.
A40: 2) | B40: It is now necessary to enter letters into column E of the Calculator worksheet on some of the cost centre rows. The table below indicates where it is necessary to enter a letter. A summary is also included on the Calculator worksheet for your reference
B42: Letter to be Entered | C42: Description/Notes
B43: L | C43: Budget Share (GAG) including LA Income (ie. SEN) - all cost centres that contain allocations which make up the budget recieved from both the EFA and the Local Authority, including any carry forward revenue and carry forward capital cost centres. Entering the letter L here will adjust the estimated year-end balance for these cost centres to zero, as all funding will have been received by year-end. NB: This will only be the case if all estimate allocations entered on the system at the start of the year are replaced with the actual figures when they become available. NB2: Academies with a licensed deficit may have a cost centre with their budgeted year end deficit allocated. This should not have a L entered by it.
B44: E | C44: Contingencies Earmarked for Use after the Current Year. It is assumed that these allocations will remain unspent at year-end. If you do not think this is the case then funds should be vired from contingencies to the appropriate cost centre(s).
B45: G | C45: General (unearmarked) Contingency. It is assumed that this allocation will remain unspent at year-end. If you do not think this is the case then funds should be vired from the contingency to the appropriate cost centre(s).
B46: C | C46: Capital Income/Expenditure. Academies must identify any unspent Capital funds and mark them as carried forward in their next year's budget. NB: A brought forward Capital balance should be denoted with the letter L
B47: T | C47: Cluster/Consortium/MAT Income & Expenditure. Academies must identify the estimated Cluster/Consortium/MAT year-end balance separately in order to report to governors and so this balance has been separated on the Summary worksheet. NB: A brought forward Cluster/Consortium/MAT balance should be denoted with the letter L.
B48: (blank) | C48: No entry is required for all other cost centres.
A50: 3) | B50: The estimated revenue and capital year-end balances that appear in cells C9 and C12 reflect the budget currently remaining unspent on the system. In order to estimate the year-end balance to be carried forward, it is now necessary to enter information in columns F to I.
A51: 4) | B51: Consider each cost centre one at a time. For income enter the total amount you are expecting to receive but for which no commitment is currently entered on the system, as a positive figure in column F. A description and (if necessary) a breakdown of this figure should be entered into column G. e.g. You might enter "maternity insurance reimbursement(£3000), staff absence insurance reimbursement (£500)" in column G and "3500" in column F.
A52: 5) | B52: Similarly, for expenditure, enter amounts into column H and descriptions into column I for expenditure to be incurred before year-end that is not currently committed on the system. For many cost centres such as curriculum subject area cost centres, you may estimate that the year-end balance will be zero. If this is the case, then make a note to this effect in column I and enter an amount in column H equal to that shown in column D.
A53: 6) | B53: Once you have entered all the required information in columns E to I as described above, the calculator has been fully completed and the figures shown in cells C9 and C12 will be your latest estimate of the year end revenue and capital balances. You should now click on the 'Store Data' button to store these details for the next time you use the spreadsheet (see section D). Please note that you must also save the spreadsheet in the normal manner before closing it otherwise your work will be lost!
A55: D) | B55: Using the Estimated Year-End Balance Calculator on Subsequent Occasions
A56: 1) | B56: Follow the instructions in sections A) and B)
B57: Click on the Calculator button so that the Calculator worksheet appears on the screen. Save this as a new version with the new month in the title before uploading a new cost centre report.Using the hard copy of the cost centre report printed earlier, enter the time and date that the latest report was printed in cells G2 and G3 respectively and enter the relevant IFS month in cell G4.
A58: 2) | B58: You will be able to see that the newly downloaded cost centre names, allocations and balances now appear in columns B, C and D. However, if the cost centre structure has changed since this calculator was last used (e.g. if a new cost centre has been added), the data in columns E to I may not now be on the correct rows. To avoid errors of this type click on the 'Update Details' button. This will ensure that all stored income/expenditure figures and descriptions relate to the correct cost centre.
A59: 3) | B59: Study the details entered in columns G and I and amend the notes shown to reflect the latest position as shown on the exported cost centre report. Remember also to amend the totals shown in columns F and H as appropriate. e.g. Referring to the example set out above (section C.4 ), you might note that the staff absence reimbursement has been received and entered on the system. You would then need to alter the notes in column F to read "maternity insurance reimbursement(£3000)" and the total in column E to read "3000".
A60: 4) | B60: Once you have amended the information in columns E to I as described above, the calculator has been fully completed and the figures shown in cells C9 and C12 will be your updated estimate of the year end revenue and capital balances. You should now click on the 'Store Data' button to store these details for the next time you use the spreadsheet. Remember that you must also save the spreadsheet in the normal manner before closing it otherwise your work will be lost!

Sheet Data
A1: Financial Year | B1: 2019/20 | C1: Fund | D1: All | E1: From Date: | F1: N/A | G1: To Date: | H1: N/A | I1: Show movement up to given period | J1: 13 Y/E | K1: Cost Centre | L1: All | M1: 1 | N1: 1 | O1: 1 | P1: 1 | Q1: 1 | R1: 1 | S1: 1 | T1: 1 | U1: SJR | V1: Shenfield High School | W1: 5467
A2: 5623 | B2: 101 | C2: Admin/Clerical Staff Costs | D2: 582920 | E2: 0 | F2: 0 | G2: 611025.23 | H2: -28105.23 | I2: 104.82
A3: 5631 | B3: 102 | C3: Catering Staff | D3: 0 | E3: 0 | F3: 0 | G3: 0 | H3: 0 | I3: 0
A4: 5632 | B4: 103 | C4: Foreign Assistant | D4: 0 | E4: 0 | F4: 0 | G4: 0 | H4: 0 | I4: 0
A5: 5629 | B5: 104 | C5: Vending Staff | D5: 0 | E5: 0 | F5: 0 | G5: 0 | H5: 0 | I5: 0
A6: 5630 | B6: 105 | C6: Premises Staff | D6: 169494 | E6: 0 | F6: 0 | G6: 169206.92 | H6: 287.08 | I6: 99.83
A7: 5575 | B7: 106 | C7: Midday Supervisors | D7: 4100 | E7: 0 | F7: 0 | G7: 3779.72 | H7: 320.28 | I7: 92.19
A8: 5624 | B8: 107 | C8: Music Peri Teachers | D8: 0 | E8: 0 | F8: 0 | G8: 0 | H8: 0 | I8: 0
A9: 5625 | B9: 108 | C9: Teachers-Main Scale | D9: 3260397 | E9: 0 | F9: 0 | G9: 3301303.05 | H9: -40906.05 | I9: 101.25
A10: 5577 | B10: 112 | C10: Leadership | D10: 903542 | E10: 0 | F10: 0 | G10: 902116.02 | H10: 1425.98 | I10: 99.84
A11: 5578 | B11: 113 | C11: Unqual Teachers | D11: 45162 | E11: 0 | F11: 0 | G11: 45492.7 | H11: -330.7 | I11: 100.73
A12: 5579 | B12: 114 | C12: Cover Supervisors | D12: 21624 | E12: 0 | F12: 0 | G12: 21589.31 | H12: 34.69 | I12: 99.84
A13: 5580 | B13: 115 | C13: Pastoral Staff | D13: 382270 | E13: 0 | F13: 0 | G13: 380741.59 | H13: 1528.41 | I13: 99.6
A14: 5581 | B14: 116 | C14: Dept Technicians | D14: 108466 | E14: 0 | F14: 0 | G14: 108294.36 | H14: 171.64 | I14: 99.84
A15: 5601 | B15: 117 | C15: LSA | D15: 176943 | E15: 0 | F15: 0 | G15: 151955.46 | H15: 24987.54 | I15: 85.88
A16: 5603 | B16: 118 | C16: IT Technicians | D16: 75954 | E16: 0 | F16: 0 | G16: 76007.69 | H16: -53.69 | I16: 100.07
A17: 5658 | B17: 120 | C17: Science Technicians | D17: 83803 | E17: 0 | F17: 0 | G17: 73613.7 | H17: 10189.3 | I17: 87.84
A18: 5659 | B18: 121 | C18: Library Staff | D18: 33974 | E18: 0 | F18: 0 | G18: 32926.66 | H18: 1047.34 | I18: 96.92
A19: 5660 | B19: 122 | C19: Student Services | D19: 42956 | E19: 0 | F19: 0 | G19: 42659.02 | H19: 296.98 | I19: 99.31
A20: 5661 | B20: 150 | C20: Supply Cost | D20: 20000 | E20: 0 | F20: 0 | G20: 32187 | H20: -12187 | I20: 160.94
A21: 5662 | B21: 151 | C21: Other Staff Cost | D21: 5000 | E21: 0 | F21: 0 | G21: 3828.6 | H21: 1171.4 | I21: 76.57
A22: 5685 | B22: 158 | C22: Pension Deficiency | D22: 0 | E22: 0 | F22: 0 | G22: 0 | H22: 0 | I22: 0
A23: 5769 | B23: 199 | C23: Other LA Income | D23: -30100 | E23: 0 | F23: 0 | G23: -15875 | H23: -14225 | I23: 52.74
A24: 5582 | B24: 200 | C24: ESFA Income | D24: -6703119 | E24: 0 | F24: 0 | G24: -6715641.89 | H24: 12522.89 | I24: 100.19
A25: 5702 | B25: 201 | C25: LEA Income | D25: -162307 | E25: 0 | F25: 0 | G25: -202656 | H25: 40349 | I25: 124.86
A26: 5591 | B26: 202 | C26: Bwt Fwd - Restricted Fund | D26: 0 | E26: 0 | F26: 0 | G26: 0 | H26: 0 | I26: 0
A27: 5724 | B27: 203 | C27: Bwt Fwd - Unrestricted | D27: -440270 | E27: 0 | F27: 0 | G27: 0 | H27: -440270 | I27: 0
A28: 5657 | B28: 217 | C28: Donations Income | D28: 0 | E28: 0 | F28: 0 | G28: 0 | H28: 0 | I28: 0
A29: 5719 | B29: 251 | C29: EFA Capital Maint-Roofing-Inc | D29: 0 | E29: 0 | F29: 0 | G29: 0 | H29: 0 | I29: 0
A30: 5767 | B30: 252 | C30: EFA Capital Cladding 17 Income | D30: 0 | E30: 0 | F30: 0 | G30: 0 | H30: 0 | I30: 0
A31: 5773 | B31: 253 | C31: EFA Capital-Roofing 17-Income | D31: 0 | E31: 0 | F31: 0 | G31: 0 | H31: 0 | I31: 0
A32: 5704 | B32: 254 | C32: EFA Capital Windows 2015 Income | D32: 0 | E32: 0 | F32: 0 | G32: 0 | H32: 0 | I32: 0
A33: 5737 | B33: 256 | C33: EFA Capital Maint Pipes 2014-Inc | D33: 0 | E33: 0 | F33: 0 | G33: 0 | H33: 0 | I33: 0
A34: 5762 | B34: 257 | C34: EFA Capital-Pipes 16-17 Income | D34: 0 | E34: 0 | F34: 0 | G34: 0 | H34: 0 | I34: 0
A35: 5787 | B35: 258 | C35: ESFA Capital-Fire Safety 19-Inc | D35: -45828 | E35: 0 | F35: 0 | G35: -45827 | H35: -1 | I35: 100
A36: 5725 | B36: 299 | C36: Contingency - Unrestricted | D36: 90419 | E36: 0 | F36: 0 | G36: 0 | H36: 90419 | I36: 0
A37: 5600 | B37: 300 | C37: Contingency Restricted | D37: 0 | E37: 0 | F37: 0 | G37: 0 | H37: 0 | I37: 0
A38: 5557 | B38: 301 | C38: Art | D38: 3950 | E38: 0 | F38: 0 | G38: 3378.51 | H38: 571.49 | I38: 85.53
A39: 5753 | B39: 302 | C39: Performing Arts Professionals | D39: 2550 | E39: 0 | F39: 0 | G39: 451.39 | H39: 2098.61 | I39: 17.7
A40: 5543 | B40: 303 | C40: Drama | D40: 1600 | E40: 0 | F40: 0 | G40: 1228.08 | H40: 371.92 | I40: 76.76
A41: 5705 | B41: 303A | C41: Drama Productions | D41: 5517 | E41: 0 | F41: 0 | G41: 3112.92 | H41: 2404.08 | I41: 56.42
A42: 5544 | B42: 304 | C42: Music | D42: 3250 | E42: 0 | F42: 0 | G42: 3230 | H42: 20 | I42: 99.38
A43: 5717 | B43: 304A | C43: Music Productions | D43: 3252 | E43: 0 | F43: 0 | G43: 1692.38 | H43: 1559.62 | I43: 52.04
A44: 5746 | B44: 305 | C44: Creative Writing | D44: 0 | E44: 0 | F44: 0 | G44: 0 | H44: 0 | I44: 0
A45: 5545 | B45: 306 | C45: English | D45: 9100 | E45: 0 | F45: 0 | G45: 15015.56 | H45: -5915.56 | I45: 165.01
A46: 5546 | B46: 307 | C46: Modern Languages | D46: 2550 | E46: 0 | F46: 0 | G46: 2378.67 | H46: 171.33 | I46: 93.28
A47: 5560 | B47: 308 | C47: Humanities | D47: 6500 | E47: 0 | F47: 0 | G47: 5892.56 | H47: 607.44 | I47: 90.65
A48: 5547 | B48: 312 | C48: Social Sciences | D48: 4150 | E48: 0 | F48: 0 | G48: 2355.88 | H48: 1794.12 | I48: 56.77
A49: 5548 | B49: 313 | C49: Science | D49: 12400 | E49: 0 | F49: 0 | G49: 10495.77 | H49: 1904.23 | I49: 84.64
A50: 5559 | B50: 314 | C50: Business Studies | D50: 1150 | E50: 0 | F50: 0 | G50: 900.6 | H50: 249.4 | I50: 78.31
A51: 5549 | B51: 316 | C51: Design & Technology | D51: 0 | E51: 0 | F51: 0 | G51: 0 | H51: 0 | I51: 0
A52: 5550 | B52: 317 | C52: Computer Science | D52: 1350 | E52: 0 | F52: 0 | G52: 480.63 | H52: 869.37 | I52: 35.6
A53: 5551 | B53: 318 | C53: DT & Voc Productions | D53: 0 | E53: 0 | F53: 0 | G53: 0 | H53: 0 | I53: 0
A54: 5552 | B54: 319 | C54: Mathematics | D54: 10450 | E54: 0 | F54: 0 | G54: 10057.66 | H54: 392.34 | I54: 96.25
A55: 5553 | B55: 320 | C55: Physical Education | D55: 7000 | E55: 0 | F55: 0 | G55: 6265.39 | H55: 734.61 | I55: 89.51
A56: 5751 | B56: 323 | C56: Literacy - Whole School | D56: 400 | E56: 0 | F56: 0 | G56: 309.56 | H56: 90.44 | I56: 77.39
A57: 5622 | B57: 324 | C57: Numeracy - Whole School | D57: 550 | E57: 0 | F57: 0 | G57: 0 | H57: 550 | I57: 0
A58: 5555 | B58: 325 | C58: PASS | D58: 1750 | E58: 0 | F58: 0 | G58: 1466.09 | H58: 283.91 | I58: 83.78
A59: 5556 | B59: 326 | C59: School Shop | D59: 0 | E59: 0 | F59: 0 | G59: 4 | H59: -4 | I59: 0
A60: 5610 | B60: 331 | C60: STEM | D60: 850 | E60: 0 | F60: 0 | G60: 20.05 | H60: 829.95 | I60: 2.36
A61: 5586 | B61: 332 | C61: Training for Staff | D61: 12000 | E61: 0 | F61: 0 | G61: 16782.86 | H61: -4782.86 | I61: 139.86
A62: 5558 | B62: 333 | C62: Media Studies | D62: 700 | E62: 0 | F62: 0 | G62: 310.7 | H62: 389.3 | I62: 44.39
A63: 5752 | B63: 335 | C63: Engineering | D63: 3400 | E63: 0 | F63: 0 | G63: 92.55 | H63: 3307.45 | I63: 2.72
A64: 5588 | B64: 336 | C64: Vocational Animals | D64: 250 | E64: 0 | F64: 0 | G64: 82.55 | H64: 167.45 | I64: 33.02
A65: 5589 | B65: 337 | C65: KS3 Pre-Vocational | D65: 600 | E65: 0 | F65: 0 | G65: 81.89 | H65: 518.11 | I65: 13.65
A66: 5593 | B66: 338 | C66: Tutorial | D66: 0 | E66: 0 | F66: 0 | G66: 0 | H66: 0 | I66: 0
A67: 5561 | B67: 340 | C67: Pastoral | D67: 3000 | E67: 0 | F67: 0 | G67: 2363.86 | H67: 636.14 | I67: 78.8
A68: 5745 | B68: 341 | C68: Safeguarding & Support | D68: 2750 | E68: 0 | F68: 0 | G68: 1523.28 | H68: 1226.72 | I68: 55.39
A69: 5562 | B69: 342 | C69: Pastoral-Sixth Fm-Raised Money | D69: 0 | E69: 0 | F69: 0 | G69: 0 | H69: 0 | I69: 0
A70: 5563 | B70: 344 | C70: Primary Liaison | D70: 200 | E70: 0 | F70: 0 | G70: 0 | H70: 200 | I70: 0
A71: 5564 | B71: 346 | C71: Sixth Form | D71: 1500 | E71: 0 | F71: 0 | G71: 998.63 | H71: 501.37 | I71: 66.58
A72: 5611 | B72: 349 | C72: Student Council | D72: 100 | E72: 0 | F72: 0 | G72: -400 | H72: 500 | I72: -400
A73: 5647 | B73: 350 | C73: Year 11- Work Experience | D73: 300 | E73: 0 | F73: 0 | G73: -98.12 | H73: 398.12 | I73: -32.71
A74: 5673 | B74: 351 | C74: Bursary Funding-14-19 | D74: 17509 | E74: 0 | F74: 0 | G74: 12777.16 | H74: 4731.84 | I74: 72.97
A75: 5713 | B75: 354 | C75: Pupil Premium | D75: 19743 | E75: 0 | F75: 0 | G75: 17127.08 | H75: 2615.92 | I75: 86.75
A76: 5720 | B76: 354A | C76: Pupil Premium-Catch Up | D76: 6543 | E76: 0 | F76: 0 | G76: 0 | H76: 6543 | I76: 0
A77: 5723 | B77: 355 | C77: Pupil Premium Staffing | D77: 138838 | E77: 0 | F77: 0 | G77: 138838 | H77: 0 | I77: 100
A78: 5666 | B78: 357 | C78: Stretch & Challenge | D78: 0 | E78: 0 | F78: 0 | G78: 0 | H78: 0 | I78: 0
A79: 5693 | B79: 358 | C79: Careers | D79: 14600 | E79: 0 | F79: 0 | G79: 10890.85 | H79: 3709.15 | I79: 74.59
A80: 5671 | B80: 360 | C80: Do not use | D80: 0 | E80: 0 | F80: 0 | G80: 0 | H80: 0 | I80: 0
A81: 5721 | B81: 365 | C81: Cricket School | D81: 3500 | E81: 0 | F81: 0 | G81: 2945.72 | H81: 554.28 | I81: 84.16
A82: 5667 | B82: 366 | C82: Football Academy | D82: 20700 | E82: 0 | F82: 0 | G82: 18339.7 | H82: 2360.3 | I82: 88.6
A83: 5676 | B83: 367 | C83: Duke of Edinburgh Award | D83: 1064 | E83: 0 | F83: 0 | G83: 3 | H83: 1061 | I83: 0.28
A84: 5682 | B84: 369 | C84: School Improvement | D84: 27000 | E84: 0 | F84: 0 | G84: 24127.72 | H84: 2872.28 | I84: 89.36
A85: 5722 | B85: 370 | C85: School Improvement - DFC | D85: 72932 | E85: 0 | F85: 0 | G85: 93222.06 | H85: -20290.06 | I85: 127.82
A86: 5626 | B86: 502 | C86: Catering Maintenance | D86: 12500 | E86: 0 | F86: 0 | G86: 28712.9 | H86: -16212.9 | I86: 229.7
A87: 5627 | B87: 503 | C87: Communications-Telephone/Fax | D87: 12000 | E87: 0 | F87: 0 | G87: 16611.42 | H87: -4611.42 | I87: 138.43
A88: 5628 | B88: 504 | C88: Departmental Services | D88: 0 | E88: 0 | F88: 0 | G88: -9472.17 | H88: 9472.17 | I88: 0
A89: 5633 | B89: 505 | C89: Exam Fees/Costs | D89: 125000 | E89: 0 | F89: 0 | G89: 108813.8 | H89: 16186.2 | I89: 87.05
A90: 5634 | B90: 506 | C90: First Aid | D90: 450 | E90: 0 | F90: 0 | G90: 421.25 | H90: 28.75 | I90: 93.61
A91: 5766 | B91: 508 | C91: Combined Cadet Force | D91: 2946 | E91: 0 | F91: 0 | G91: 3941.41 | H91: -995.41 | I91: 133.79
A92: 5635 | B92: 509 | C92: Jack Petchey Foundation Awards | D92: 1601 | E92: 0 | F92: 0 | G92: -1035.41 | H92: 2636.41 | I92: -64.67
A93: 5636 | B93: 510 | C93: Library | D93: 2500 | E93: 0 | F93: 0 | G93: 2200.24 | H93: 299.76 | I93: 88.01
A94: 5786 | B94: 512 | C94: Production Maintenance | D94: 24 | E94: 0 | F94: 0 | G94: -54.4 | H94: 78.4 | I94: -226.67
A95: 5637 | B95: 513 | C95: Minibus Expenditure | D95: 20500 | E95: 0 | F95: 0 | G95: 18841.43 | H95: 1658.57 | I95: 91.91
A96: 5638 | B96: 514 | C96: Music Tuition | D96: 0 | E96: 0 | F96: 0 | G96: -2936.21 | H96: 2936.21 | I96: 0
A97: 5639 | B97: 515 | C97: Office Expenses-Admin | D97: 3000 | E97: 0 | F97: 0 | G97: 2748.65 | H97: 251.35 | I97: 91.62
A98: 5640 | B98: 516 | C98: Other Income | D98: -10000 | E98: 0 | F98: 0 | G98: -22405.71 | H98: 12405.71 | I98: 224.06
A99: 5641 | B99: 517 | C99: Hospitality Costs | D99: 3000 | E99: 0 | F99: 0 | G99: 1430.16 | H99: 1569.84 | I99: 47.67
A100: 5642 | B100: 518 | C100: Postage | D100: 3550 | E100: 0 | F100: 0 | G100: 3533 | H100: 17 | I100: 99.52
A101: 5643 | B101: 519 | C101: Professional Fees-School | D101: 62000 | E101: 0 | F101: 0 | G101: 55095.91 | H101: 6904.09 | I101: 88.86
A102: 5644 | B102: 520 | C102: Pupil Travel | D102: 0 | E102: 0 | F102: 0 | G102: -156 | H102: 156 | I102: 0
A103: 5645 | B103: 522 | C103: Irrecoverable VAT | D103: 2500 | E103: 0 | F103: 0 | G103: 2821.77 | H103: -321.77 | I103: 112.87
A104: 5772 | B104: 523 | C104: Sports & Coaching Services | D104: 6000 | E104: 0 | F104: 0 | G104: 4840.23 | H104: 1159.77 | I104: 80.67
A105: 5646 | B105: 526 | C105: Staff Recruitment/ Advertising | D105: 12250 | E105: 0 | F105: 0 | G105: 7785.28 | H105: 4464.72 | I105: 63.55
A106: 5648 | B106: 527 | C106: Marketing-Headteacher | D106: 5000 | E106: 0 | F106: 0 | G106: 2903.73 | H106: 2096.27 | I106: 58.07
A107: 5585 | B107: 531 | C107: Pupil Exclusion/Referral | D107: 17191 | E107: 0 | F107: 0 | G107: 17190.15 | H107: 0.85 | I107: 100
A108: 5782 | B108: 532 | C108: Interventions | D108: 500 | E108: 0 | F108: 0 | G108: 99.67 | H108: 400.33 | I108: 19.93
A109: 5783 | B109: 533 | C109: PREP/Parent Council | D109: 1750 | E109: 0 | F109: 0 | G109: 1469.87 | H109: 280.13 | I109: 83.99
A110: 5784 | B110: 534 | C110: Research | D110: 500 | E110: 0 | F110: 0 | G110: 0.8 | H110: 499.2 | I110: 0.16
A111: 5590 | B111: 536 | C111: Field Study Support | D111: 3500 | E111: 0 | F111: 0 | G111: 2593.14 | H111: 906.86 | I111: 74.09
A112: 5596 | B112: 539 | C112: Alternative Education-JIC | D112: 12000 | E112: 0 | F112: 0 | G112: 12094.94 | H112: -94.94 | I112: 100.79
A113: 5597 | B113: 540 | C113: Catering Income | D113: 0 | E113: 0 | F113: 0 | G113: 0 | H113: 0 | I113: 0
A114: 5598 | B114: 541 | C114: NEET Intervention Activities | D114: 0 | E114: 0 | F114: 0 | G114: 0 | H114: 0 | I114: 0
A115: 5599 | B115: 542 | C115: .Do not use | D115: 0 | E115: 0 | F115: 0 | G115: 0 | H115: 0 | I115: 0
A116: 5650 | B116: 544 | C116: Governors | D116: 2200 | E116: 0 | F116: 0 | G116: 1497.1 | H116: 702.9 | I116: 68.05
A117: 5689 | B117: 545 | C117: Charity Collections | D117: 0 | E117: 0 | F117: 0 | G117: -0.62 | H117: 0.62 | I117: 0
A118: 5790 | B118: 546 | C118: X3 Refurb Fundraising | D118: 0 | E118: 0 | F118: 0 | G118: -200 | H118: 200 | I118: 0
A119: 5602 | B119: 548 | C119: IT-Maintenance | D119: 94000 | E119: 0 | F119: 0 | G119: 91040.61 | H119: 2959.39 | I119: 96.85
A120: 5696 | B120: 550 | C120: Parent Donations | D120: -5250 | E120: 0 | F120: 0 | G120: -7211.5 | H120: 1961.5 | I120: 137.36
A121: 5697 | B121: 552 | C121: Staffroom Fund | D121: 1025 | E121: 0 | F121: 0 | G121: 918.83 | H121: 106.17 | I121: 89.64
A122: 5779 | B122: 553 | C122: SHS PTA | D122: 0 | E122: 0 | F122: 0 | G122: 0 | H122: 0 | I122: 0
A123: 5606 | B123: 557 | C123: SLT | D123: 0 | E123: 0 | F123: 0 | G123: 0 | H123: 0 | I123: 0
A124: 5608 | B124: 560 | C124: Communications-Maintenance | D124: 1000 | E124: 0 | F124: 0 | G124: 846.24 | H124: 153.76 | I124: 84.62
A125: 5687 | B125: 564 | C125: Free School Meals-Students | D125: 42000 | E125: 0 | F125: 0 | G125: 28521 | H125: 13479 | I125: 67.91
A126: 5612 | B126: 565 | C126: Free School Meals-Staff | D126: 11000 | E126: 0 | F126: 0 | G126: 8884.07 | H126: 2115.93 | I126: 80.76
A127: 5716 | B127: 576 | C127: Oasis Centre | D127: 900 | E127: 0 | F127: 0 | G127: 591.92 | H127: 308.08 | I127: 65.77
A128: 5770 | B128: 600 | C128: Working Environment | D128: 5500 | E128: 0 | F128: 0 | G128: 7941.12 | H128: -2441.12 | I128: 144.38
A129: 5566 | B129: 601 | C129: Licences/Subscriptions/Fees | D129: 11500 | E129: 0 | F129: 0 | G129: 9801.88 | H129: 1698.12 | I129: 85.23
A130: 5567 | B130: 602 | C130: Cleaning | D130: 175600 | E130: 0 | F130: 0 | G130: 178030.49 | H130: -2430.49 | I130: 101.38
A131: 5758 | B131: 603 | C131: Devolved Formula Capital | D131: 0 | E131: 0 | F131: 0 | G131: 0 | H131: 0 | I131: 0
A132: 5568 | B132: 604 | C132: Furniture&Equipment | D132: 2500 | E132: 0 | F132: 0 | G132: 1080.47 | H132: 1419.53 | I132: 43.22
A133: 5649 | B133: 605 | C133: General Buildings&Premises Maint | D133: 54000 | E133: 0 | F133: 0 | G133: 49973.36 | H133: 4026.64 | I133: 92.54
A134: 5569 | B134: 606 | C134: Grounds Upkeep | D134: 15000 | E134: 0 | F134: 0 | G134: 14920.49 | H134: 79.51 | I134: 99.47
A135: 5570 | B135: 607 | C135: Insurance-Buildings&Contents | D135: 33500 | E135: 0 | F135: 0 | G135: 23174.51 | H135: 10325.49 | I135: 69.18
A136: 5571 | B136: 608 | C136: Rates | D136: 34442 | E136: 0 | F136: 0 | G136: 33783 | H136: 659 | I136: 98.09
A137: 5572 | B137: 609 | C137: Lettings&Rents | D137: -65000 | E137: 0 | F137: 0 | G137: -37271.27 | H137: -27728.73 | I137: 57.34
A138: 5573 | B138: 611 | C138: Swimming Pool | D138: 9000 | E138: 0 | F138: 0 | G138: 3506.47 | H138: 5493.53 | I138: 38.96
A139: 5574 | B139: 612 | C139: Water | D139: 30000 | E139: 0 | F139: 0 | G139: 25690.59 | H139: 4309.41 | I139: 85.64
A140: 5576 | B140: 613 | C140: Energy | D140: 144000 | E140: 0 | F140: 0 | G140: 167769.44 | H140: -23769.44 | I140: 116.51
A141: 5765 | B141: 614 | C141: Salix Loan | D141: 22880 | E141: 0 | F141: 0 | G141: 21808 | H141: 1072 | I141: 95.31
A142: 5771 | B142: 614A | C142: Salix Loan long term liability | D142: 0 | E142: 0 | F142: 0 | G142: -21808 | H142: 21808 | I142: 0
A143: 5674 | B143: 615 | C143: Insurance Claims-Costs | D143: 0 | E143: 0 | F143: 0 | G143: 18521.04 | H143: -18521.04 | I143: 0
A144: 5675 | B144: 615A | C144: Insurance Claims-Income | D144: 0 | E144: 0 | F144: 0 | G144: -18021.04 | H144: 18021.04 | I144: 0
A145: 5791 | B145: 616 | C145: CIF Loan | D145: 0 | E145: 0 | F145: 0 | G145: 0 | H145: 0 | I145: 0
A146: 5792 | B146: 616A | C146: CIF Loan Long Term Liability | D146: 0 | E146: 0 | F146: 0 | G146: 0 | H146: 0 | I146: 0
A147: 5655 | B147: 640 | C147: Sports Hall Income | D147: -35000 | E147: 0 | F147: 0 | G147: -21835 | H147: -13165 | I147: 62.39
A148: 5656 | B148: 640A | C148: Sports Hall Exp | D148: 2000 | E148: 0 | F148: 0 | G148: 1164.94 | H148: 835.06 | I148: 58.25
A149: 5604 | B149: 649 | C149: Bwt Forward-Capital | D149: -83298 | E149: 0 | F149: 0 | G149: 0 | H149: -83298 | I149: 0
A150: 5584 | B150: 650 | C150: S106 Build Exp | D150: 0 | E150: 0 | F150: 0 | G150: 0 | H150: 0 | I150: 0
A151: 5718 | B151: 651 | C151: EFA Capital Maint-Roofing-Exp | D151: 0 | E151: 0 | F151: 0 | G151: 0 | H151: 0 | I151: 0
A152: 5768 | B152: 652 | C152: EFA Capital Cladding 17 Expenses | D152: 0 | E152: 0 | F152: 0 | G152: 0 | H152: 0 | I152: 0
A153: 5774 | B153: 653 | C153: EFA Capital Roofing 17-Exps | D153: 0 | E153: 0 | F153: 0 | G153: 0 | H153: 0 | I153: 0
A154: 5759 | B154: 654 | C154: EFA Windows 2015 Exp | D154: 0 | E154: 0 | F154: 0 | G154: 0 | H154: 0 | I154: 0
A155: 5738 | B155: 656 | C155: EFA-Capital Maint-Pipes 2014-Exp | D155: 0 | E155: 0 | F155: 0 | G155: 0 | H155: 0 | I155: 0
A156: 5763 | B156: 657 | C156: EFA Capital-Pipes 16-17 Expenses | D156: 0 | E156: 0 | F156: 0 | G156: 0 | H156: 0 | I156: 0
A157: 5788 | B157: 658 | C157: ESFA Capital-Fire Safety 19-Exp | D157: 81935 | E157: 0 | F157: 0 | G157: 86421.45 | H157: -4486.45 | I157: 105.48
A158: 5665 | B158: 670 | C158: Summer Works 2013 | D158: 0 | E158: 0 | F158: 0 | G158: 0 | H158: 0 | I158: 0
A159: 5731 | B159: 703 | C159: Year end journals | D159: 0 | E159: 0 | F159: 0 | G159: 0 | H159: 0 | I159: 0
A160: 5668 | B160: AGP0101 | C160: Artificial Pitch Income | D160: -60000 | E160: 0 | F160: 0 | G160: -48700 | H160: -11300 | I160: 81.17
A161: 5669 | B161: AGP0201 | C161: Artificial Pitch Expenditure | D161: 5000 | E161: 0 | F161: 0 | G161: 2980.05 | H161: 2019.95 | I161: 59.6
A162: 5670 | B162: AGP0202 | C162: Artifical Pitch Sinking Fund | D162: 105000 | E162: 0 | F162: 0 | G162: 0 | H162: 105000 | I162: 0
A163: 5653 | B163: BADDEBT | C163: Bad Debt-A/C's Receivable | D163: 0 | E163: 0 | F163: 0 | G163: 0 | H163: 0 | I163: 0
A164: 5605 | B164: BS410 | C164: BESS-Pilates Course | D164: 0 | E164: 0 | F164: 0 | G164: -171.81 | H164: 171.81 | I164: 0
A165: 5607 | B165: BS414 | C165: BESS-Yoga Course | D165: 0 | E165: 0 | F165: 0 | G165: 0 | H165: 0 | I165: 0
A166: 5663 | B166: GTP204 | C166: GTP Salaries-Exp | D166: 0 | E166: 0 | F166: 0 | G166: 0 | H166: 0 | I166: 0
A167: 5651 | B167: GTP205 | C167: GTP-Income-Staff Salarie | D167: 0 | E167: 0 | F167: 0 | G167: 0 | H167: 0 | I167: 0
A168: 5652 | B168: GTP207 | C168: GTP-Income-Accomodation/Admin | D168: 0 | E168: 0 | F168: 0 | G168: 0 | H168: 0 | I168: 0
A169: 5761 | B169: JG001 | C169: Just Giving | D169: 0 | E169: 0 | F169: 0 | G169: 0 | H169: 0 | I169: 0
A170: 5613 | B170: SCT201 | C170: SCITT Accom/Admin Inc | D170: 0 | E170: 0 | F170: 0 | G170: 0 | H170: 0 | I170: 0
A171: 5614 | B171: SCT202 | C171: SCITT/Trainee Salaries Inc | D171: 0 | E171: 0 | F171: 0 | G171: 0 | H171: 0 | I171: 0
A172: 5615 | B172: SCT203 | C172: SCITT Salaries-Income | D172: 0 | E172: 0 | F172: 0 | G172: 0 | H172: 0 | I172: 0
A173: 5616 | B173: SCT204 | C173: SCITT Trv Exps/Repro | D173: 0 | E173: 0 | F173: 0 | G173: 0 | H173: 0 | I173: 0
A174: 5664 | B174: SCT205 | C174: SCITT Salaries-Ex | D174: 0 | E174: 0 | F174: 0 | G174: 0 | H174: 0 | I174: 0
A175: 5683 | B175: SFLAC | C175: SF-Looked After Children | D175: 7972 | E175: 0 | F175: 0 | G175: 4995.92 | H175: 2976.08 | I175: 62.67
A176: 5678 | B176: SG102 | C176: Sportivate Income | D176: 0 | E176: 0 | F176: 0 | G176: 0 | H176: 0 | I176: 0
A177: 5672 | B177: SG150 | C177: School Games | D177: 12821 | E177: 0 | F177: 0 | G177: 1203.71 | H177: 11617.29 | I177: 9.39
A178: 5701 | B178: SG150A | C178: SGO Salary Income | D178: -23800 | E178: 0 | F178: 0 | G178: -23800 | H178: 0 | I178: 100
A179: 5677 | B179: SG151 | C179: Sportivate Expenditure | D179: 252 | E179: 0 | F179: 0 | G179: 245 | H179: 7 | I179: 97.22
A180: 5700 | B180: SG152 | C180: School GSLA | D180: 0 | E180: 0 | F180: 0 | G180: 0 | H180: 0 | I180: 0
A181: 5714 | B181: SG152A | C181: School Games-SLA Income | D181: 0 | E181: 0 | F181: 0 | G181: 0 | H181: 0 | I181: 0
A182: 5776 | B182: TR901 | C182: Wicked - 9.10.19 | D182: 0 | E182: 0 | F182: 0 | G182: 0 | H182: 0 | I182: 0
A183: 5775 | B183: TR902 | C183: Sports Science Taster Day 7.10.1 | D183: 0 | E183: 0 | F183: 0 | G183: 0 | H183: 0 | I183: 0
A184: 5732 | B184: TR903 | C184: Year 11 Prom 2020 | D184: 3431 | E184: 0 | F184: 0 | G184: 1521.28 | H184: 1909.72 | I184: 44.34
A185: 5728 | B185: TR904 | C185: Woman in Black -14.11.19 | D185: 0 | E185: 0 | F185: 0 | G185: 0 | H185: 0 | I185: 0
A186: 5727 | B186: TR905 | C186: Ski Trip 2020 | D186: 0 | E186: 0 | F186: 0 | G186: 0 | H186: 0 | I186: 0
A187: 5726 | B187: TR906 | C187: Iceland 2020 | D187: 0 | E187: 0 | F187: 0 | G187: 0 | H187: 0 | I187: 0
A188: 5681 | B188: TR907 | C188: Jack the Ripper - 17.10.19 | D188: 0 | E188: 0 | F188: 0 | G188: 0 | H188: 0 | I188: 0
A189: 5684 | B189: TR908 | C189: New York/Washington March '21 | D189: 0 | E189: 0 | F189: 0 | G189: 0 | H189: 0 | I189: 0
A190: 5733 | B190: TR909 | C190: Tate Modern 16.11.18 (Year 11) | D190: 0 | E190: 0 | F190: 0 | G190: 0 | H190: 0 | I190: 0
A191: 5617 | B191: TR910 | C191: Computer Science-Disneyland '20 | D191: 0 | E191: 0 | F191: 0 | G191: 0 | H191: 0 | I191: 0
A192: 5691 | B192: TR911 | C192: Day in the death of Joe Egg-18.1 | D192: 0 | E192: 0 | F192: 0 | G192: 0 | H192: 0 | I192: 0
A193: 5618 | B193: TR912 | C193: Admin Fee / Insurance | D193: 0 | E193: 0 | F193: 0 | G193: -174.75 | H193: 174.75 | I193: 0
A194: 5619 | B194: TR913 | C194: Trip Contingency | D194: 0 | E194: 0 | F194: 0 | G194: -2035.81 | H194: 2035.81 | I194: 0
A195: 5620 | B195: TR914 | C195: Trip Balances | D195: 0 | E195: 0 | F195: 0 | G195: -1636.29 | H195: 1636.29 | I195: 0
A196: 5621 | B196: TR915 | C196: Ski 2021 | D196: 0 | E196: 0 | F196: 0 | G196: 0 | H196: 0 | I196: 0
A197: 5583 | B197: TR916 | C197: Sports Camp | D197: 12147 | E197: 0 | F197: 0 | G197: 275.02 | H197: 11871.98 | I197: 2.26
A198: 5686 | B198: TR917 | C198: New York - Oct. '19 | D198: 0 | E198: 0 | F198: 0 | G198: 0 | H198: 0 | I198: 0
A199: 5734 | B199: TR918 | C199: Matilda - 4.12.19 | D199: 0 | E199: 0 | F199: 0 | G199: 0 | H199: 0 | I199: 0
A200: 5715 | B200: TR919 | C200: Barcelona - May 2020 | D200: 0 | E200: 0 | F200: 0 | G200: 0 | H200: 0 | I200: 0
... 46 more rows

Sheet Calculator
B2: Estimated Carry Forward Balance Calculator | F2: Date: | G2: 2020-09-24
E3: Information as shown on cost centre report printed: | F3: Time: | G3: 09:24:00
F4: Month | G4: 13
F8: Key to 'Cost Centre Type' Column Entries
B9: Est. Year-End Revenue Balance | C9: =Summary!J21 -> £103,037.48 | F9: L | G9: Budget Share Funding, EFA, LA, B/fwd balances
F10: E | G10: Contingencies earmarked for use after current year
F11: G | G11: General Contingency
B12: Est. Year-End Capital Balance | C12: =Summary!J25 -> £0.00 | F12: C | G12: Capital Income & Expenditure
F13: T | G13: Cluster/Consortium/MAT Income & Expenditure
A15: CC No. | B15: Cost Centre | C15: Current Allocation | D15: Current Balance | E15: Cost Centre Type: | F15: Income due (not on report) | G15: Additional Income: Notes | H15: Expenditure due (not on report) | I15: Additional Expenditure: Notes | L15: Est Yr-end Actual Inc/Exp | M15: Est Yr-end Balance
A16: 99 | B16: TOTAL: | C16: =SUM(C17:C258) -> 0.00 | D16: =SUM(D17:D258) -> -248,337.61 | F16: =SUM(F17:F258) -> 545,259.06 | H16: =SUM(H17:H258) -> 193,883.97 | L16: =SUM(L17:L258) -> -103,037.48 | M16: =SUM(M17:M258) -> 103,037.48
A17: =Sheet1!F11 -> 101 | B17: =Sheet1!G11 -> Admin/Clerical Staff Costs | C17: =Sheet1!H11 -> 582,920.00 | D17: =Sheet1!I11 -> -28,105.23 | F17: 0.00 | J17: =IF($D17+$F17-$H17>0,SUM($D17+$F17-$H17),0) -> 0.00 | K17: =(IF($D17+$F17-$H17<=0,(SUM($D17+$F17-$H17)*-1),0)) -> 28,105.23 | L17: =IF($E17="L",C17,C17-J17+K17) -> 611,025.23 | M17: =IF($E17="L",0,J17-K17) -> -28,105.23
A18: =Sheet1!F12 -> 102 | B18: =Sheet1!G12 -> Catering Staff | C18: =Sheet1!H12 -> 0.00 | D18: =Sheet1!I12 -> 0.00 | F18: 0.00 | H18: 0.00 | J18: =IF($D18+$F18-$H18>0,SUM($D18+$F18-$H18),0) -> 0.00 | K18: =(IF($D18+$F18-$H18<=0,(SUM($D18+$F18-$H18)*-1),0)) -> 0.00 | L18: =IF($E18="L",C18,C18-J18+K18) -> 0.00 | M18: =IF($E18="L",0,J18-K18) -> 0.00
A19: =Sheet1!F13 -> 103 | B19: =Sheet1!G13 -> Foreign Assistant | C19: =Sheet1!H13 -> 0.00 | D19: =Sheet1!I13 -> 0.00 | F19: 0.00 | H19: 0.00 | J19: =IF($D19+$F19-$H19>0,SUM($D19+$F19-$H19),0) -> 0.00 | K19: =(IF($D19+$F19-$H19<=0,(SUM($D19+$F19-$H19)*-1),0)) -> 0.00 | L19: =IF($E19="L",C19,C19-J19+K19) -> 0.00 | M19: =IF($E19="L",0,J19-K19) -> 0.00
A20: =Sheet1!F14 -> 104 | B20: =Sheet1!G14 -> Vending Staff | C20: =Sheet1!H14 -> 0.00 | D20: =Sheet1!I14 -> 0.00 | F20: 0.00 | H20: 0.00 | J20: 0.00 | K20: 0.00 | L20: 0.00 | M20: 0.00
A21: =Sheet1!F15 -> 105 | B21: =Sheet1!G15 -> Premises Staff | C21: =Sheet1!H15 -> 169,494.00 | D21: =Sheet1!I15 -> 287.08 | F21: 0.00 | H21: 0.00 | J21: 287.08 | K21: 0.00 | L21: 169,206.92 | M21: 287.08
A22: =Sheet1!F16 -> 106 | B22: =Sheet1!G16 -> Midday Supervisors | C22: =Sheet1!H16 -> 4,100.00 | D22: =Sheet1!I16 -> 320.28 | F22: 0.00 | H22: 0.00 | J22: 320.28 | K22: 0.00 | L22: 3,779.72 | M22: 320.28
A23: =Sheet1!F17 -> 107 | B23: =Sheet1!G17 -> Music Peri Teachers | C23: =Sheet1!H17 -> 0.00 | D23: =Sheet1!I17 -> 0.00 | F23: 0.00 | H23: 0.00 | J23: 0.00 | K23: 0.00 | L23: 0.00 | M23: 0.00
A24: =Sheet1!F18 -> 108 | B24: =Sheet1!G18 -> Teachers-Main Scale | C24: =Sheet1!H18 -> 3,260,397.00 | D24: =Sheet1!I18 -> -40,906.05 | F24: 0.00 | H24: 0.00 | J24: 0.00 | K24: 40,906.05 | L24: 3,301,303.05 | M24: -40,906.05
A25: =Sheet1!F19 -> 112 | B25: =Sheet1!G19 -> Leadership | C25: =Sheet1!H19 -> 903,542.00 | D25: =Sheet1!I19 -> 1,425.98 | F25: 0.00 | H25: 0.00 | J25: 1,425.98 | K25: 0.00 | L25: 902,116.02 | M25: 1,425.98
A26: =Sheet1!F20 -> 113 | B26: =Sheet1!G20 -> Unqual Teachers | C26: =Sheet1!H20 -> 45,162.00 | D26: =Sheet1!I20 -> -330.70 | F26: 0.00 | H26: 0.00 | J26: 0.00 | K26: 330.70 | L26: 45,492.70 | M26: -330.70
A27: =Sheet1!F21 -> 114 | B27: =Sheet1!G21 -> Cover Supervisors | C27: =Sheet1!H21 -> 21,624.00 | D27: =Sheet1!I21 -> 34.69 | F27: 0.00 | H27: 0.00 | J27: 34.69 | K27: 0.00 | L27: 21,589.31 | M27: 34.69
A28: =Sheet1!F22 -> 115 | B28: =Sheet1!G22 -> Pastoral Staff | C28: =Sheet1!H22 -> 382,270.00 | D28: =Sheet1!I22 -> 1,528.41 | F28: 0.00 | H28: 0.00 | J28: 1,528.41 | K28: 0.00 | L28: 380,741.59 | M28: 1,528.41
A29: =Sheet1!F23 -> 116 | B29: =Sheet1!G23 -> Dept Technicians | C29: =Sheet1!H23 -> 108,466.00 | D29: =Sheet1!I23 -> 171.64 | F29: 0.00 | H29: 0.00 | J29: 171.64 | K29: 0.00 | L29: 108,294.36 | M29: 171.64
A30: =Sheet1!F24 -> 117 | B30: =Sheet1!G24 -> LSA | C30: =Sheet1!H24 -> 176,943.00 | D30: =Sheet1!I24 -> 24,987.54 | F30: 0.00 | H30: 0.00 | J30: 24,987.54 | K30: 0.00 | L30: 151,955.46 | M30: 24,987.54
A31: =Sheet1!F25 -> 118 | B31: =Sheet1!G25 -> IT Technicians | C31: =Sheet1!H25 -> 75,954.00 | D31: =Sheet1!I25 -> -53.69 | F31: 0.00 | H31: 0.00 | J31: 0.00 | K31: 53.69 | L31: 76,007.69 | M31: -53.69
A32: =Sheet1!F26 -> 120 | B32: =Sheet1!G26 -> Science Technicians | C32: =Sheet1!H26 -> 83,803.00 | D32: =Sheet1!I26 -> 10,189.30 | F32: 0.00 | H32: 0.00 | J32: 10,189.30 | K32: 0.00 | L32: 73,613.70 | M32: 10,189.30
A33: =Sheet1!F27 -> 121 | B33: =Sheet1!G27 -> Library Staff | C33: =Sheet1!H27 -> 33,974.00 | D33: =Sheet1!I27 -> 1,047.34 | F33: 0.00 | H33: 0.00 | J33: 1,047.34 | K33: 0.00 | L33: 32,926.66 | M33: 1,047.34
A34: =Sheet1!F28 -> 122 | B34: =Sheet1!G28 -> Student Services | C34: =Sheet1!H28 -> 42,956.00 | D34: =Sheet1!I28 -> 296.98 | F34: 0.00 | H34: 0.00 | J34: 296.98 | K34: 0.00 | L34: 42,659.02 | M34: 296.98
A35: =Sheet1!F29 -> 150 | B35: =Sheet1!G29 -> Supply Cost | C35: =Sheet1!H29 -> 20,000.00 | D35: =Sheet1!I29 -> -12,187.00 | F35: 0.00 | H35: 0.00 | J35: 0.00 | K35: 12,187.00 | L35: 32,187.00 | M35: -12,187.00
A36: =Sheet1!F30 -> 151 | B36: =Sheet1!G30 -> Other Staff Cost | C36: =Sheet1!H30 -> 5,000.00 | D36: =Sheet1!I30 -> 1,171.40 | F36: 0.00 | H36: 0.00 | J36: 1,171.40 | K36: 0.00 | L36: 3,828.60 | M36: 1,171.40
A37: =Sheet1!F31 -> 158 | B37: =Sheet1!G31 -> Pension Deficiency | C37: =Sheet1!H31 -> 0.00 | D37: =Sheet1!I31 -> 0.00 | F37: 0.00 | H37: 0.00 | J37: 0.00 | K37: 0.00 | L37: 0.00 | M37: 0.00
A38: =Sheet1!F32 -> 199 | B38: =Sheet1!G32 -> Other LA Income | C38: =Sheet1!H32 -> -30,100.00 | D38: =Sheet1!I32 -> -14,225.00 | F38: 0.00 | H38: 0.00 | J38: 0.00 | K38: 14,225.00 | L38: -15,875.00 | M38: -14,225.00
A39: =Sheet1!F33 -> 200 | B39: =Sheet1!G33 -> ESFA Income | C39: =Sheet1!H33 -> -6,703,119.00 | D39: =Sheet1!I33 -> 12,522.89 | H39: 0.00 | J39: 12,522.89 | K39: 0.00 | L39: -6,715,641.89 | M39: 12,522.89
A40: =Sheet1!F34 -> 201 | B40: =Sheet1!G34 -> LEA Income | C40: =Sheet1!H34 -> -162,307.00 | D40: =Sheet1!I34 -> 40,349.00 | F40: 0.00 | H40: 0.00 | J40: 40,349.00 | K40: 0.00 | L40: -202,656.00 | M40: 40,349.00
A41: =Sheet1!F35 -> 202 | B41: =Sheet1!G35 -> Bwt Fwd - Restricted Fund | C41: =Sheet1!H35 -> 0.00 | D41: =Sheet1!I35 -> 0.00 | F41: 0.00 | H41: 0.00 | J41: 0.00 | K41: 0.00 | L41: 0.00 | M41: 0.00
A42: =Sheet1!F36 -> 203 | B42: =Sheet1!G36 -> Bwt Fwd - Unrestricted | C42: =Sheet1!H36 -> -440,270.00 | D42: =Sheet1!I36 -> -440,270.00 | F42: 440270.00 | H42: 0.00 | J42: 0.00 | K42: 0.00 | L42: -440,270.00 | M42: 0.00
A43: =Sheet1!F37 -> 217 | B43: =Sheet1!G37 -> Donations Income | C43: =Sheet1!H37 -> 0.00 | D43: =Sheet1!I37 -> 0.00 | F43: 0.00 | H43: 0.00 | J43: 0.00 | K43: 0.00 | L43: 0.00 | M43: 0.00
A44: =Sheet1!F38 -> 251 | B44: =Sheet1!G38 -> EFA Capital Maint-Roofing-Inc | C44: =Sheet1!H38 -> 0.00 | D44: =Sheet1!I38 -> 0.00 | F44: 0.00 | H44: 0.00 | J44: 0.00 | K44: 0.00 | L44: 0.00 | M44: 0.00
A45: =Sheet1!F39 -> 252 | B45: =Sheet1!G39 -> EFA Capital Cladding 17 Income | C45: =Sheet1!H39 -> 0.00 | D45: =Sheet1!I39 -> 0.00 | F45: 0.00 | H45: 0.00 | J45: 0.00 | K45: 0.00 | L45: 0.00 | M45: 0.00
A46: =Sheet1!F40 -> 253 | B46: =Sheet1!G40 -> EFA Capital-Roofing 17-Income | C46: =Sheet1!H40 -> 0.00 | D46: =Sheet1!I40 -> 0.00 | F46: 0.00 | H46: 0.00 | J46: 0.00 | K46: 0.00 | L46: 0.00 | M46: 0.00
A47: =Sheet1!F41 -> 254 | B47: =Sheet1!G41 -> EFA Capital Windows 2015 Income | C47: =Sheet1!H41 -> 0.00 | D47: =Sheet1!I41 -> 0.00 | F47: 0.00 | H47: 0.00 | J47: 0.00 | K47: 0.00 | L47: 0.00 | M47: 0.00
A48: =Sheet1!F42 -> 256 | B48: =Sheet1!G42 -> EFA Capital Maint Pipes 2014-Inc | C48: =Sheet1!H42 -> 0.00 | D48: =Sheet1!I42 -> 0.00 | F48: 0.00 | H48: 0.00 | J48: 0.00 | K48: 0.00 | L48: 0.00 | M48: 0.00
A49: =Sheet1!F43 -> 257 | B49: =Sheet1!G43 -> EFA Capital-Pipes 16-17 Income | C49: =Sheet1!H43 -> 0.00 | D49: =Sheet1!I43 -> 0.00 | F49: 0.00 | H49: 0.00 | J49: 0.00 | K49: 0.00 | L49: 0.00 | M49: 0.00
A50: =Sheet1!F44 -> 258 | B50: =Sheet1!G44 -> ESFA Capital-Fire Safety 19-Inc | C50: =Sheet1!H44 -> -45,828.00 | D50: =Sheet1!I44 -> -1.00 | F50: 0.00 | H50: 0.00 | J50: 0.00 | K50: 1.00 | L50: -45,827.00 | M50: -1.00
A51: =Sheet1!F45 -> 299 | B51: =Sheet1!G45 -> Contingency - Unrestricted | C51: =Sheet1!H45 -> 90,419.00 | D51: =Sheet1!I45 -> 90,419.00 | F51: 1401.00 | H51: 20290.06 | I51: Capital overspend to School Imp DFC | J51: 71,529.94 | K51: 0.00 | L51: 18,889.06 | M51: 71,529.94
A52: =Sheet1!F46 -> 300 | B52: =Sheet1!G46 -> Contingency Restricted | C52: =Sheet1!H46 -> 0.00 | D52: =Sheet1!I46 -> 0.00 | F52: 0.00 | H52: 0.00 | J52: 0.00 | K52: 0.00 | L52: 0.00 | M52: 0.00
A53: =Sheet1!F47 -> 301 | B53: =Sheet1!G47 -> Art | C53: =Sheet1!H47 -> 3,950.00 | D53: =Sheet1!I47 -> 571.49 | F53: 0.00 | H53: 0.00 | J53: 571.49 | K53: 0.00 | L53: 3,378.51 | M53: 571.49
A54: =Sheet1!F48 -> 302 | B54: =Sheet1!G48 -> Performing Arts Professionals | C54: =Sheet1!H48 -> 2,550.00 | D54: =Sheet1!I48 -> 2,098.61 | F54: 0.00 | H54: 0.00 | J54: 2,098.61 | K54: 0.00 | L54: 451.39 | M54: 2,098.61
A55: =Sheet1!F49 -> 303 | B55: =Sheet1!G49 -> Drama | C55: =Sheet1!H49 -> 1,600.00 | D55: =Sheet1!I49 -> 371.92 | F55: 0.00 | H55: 0.00 | J55: 371.92 | K55: 0.00 | L55: 1,228.08 | M55: 371.92
A56: =Sheet1!F50 -> 303A | B56: =Sheet1!G50 -> Drama Productions | C56: =Sheet1!H50 -> 5,517.00 | D56: =Sheet1!I50 -> 2,404.08 | F56: 0.00 | H56: =D56 -> 2404.08 | J56: 0.00 | K56: 0.00 | L56: 5,517.00 | M56: 0.00
A57: =Sheet1!F51 -> 304 | B57: =Sheet1!G51 -> Music | C57: =Sheet1!H51 -> 3,250.00 | D57: =Sheet1!I51 -> 20.00 | F57: 0.00 | H57: 0.00 | J57: 20.00 | K57: 0.00 | L57: 3,230.00 | M57: 20.00
A58: =Sheet1!F52 -> 304A | B58: =Sheet1!G52 -> Music Productions | C58: =Sheet1!H52 -> 3,252.00 | D58: =Sheet1!I52 -> 1,559.62 | F58: 0.00 | H58: =D58 -> 1559.62 | J58: 0.00 | K58: 0.00 | L58: 3,252.00 | M58: 0.00
A59: =Sheet1!F53 -> 305 | B59: =Sheet1!G53 -> Creative Writing | C59: =Sheet1!H53 -> 0.00 | D59: =Sheet1!I53 -> 0.00 | F59: 0.00 | H59: 0.00 | J59: 0.00 | K59: 0.00 | L59: 0.00 | M59: 0.00
A60: =Sheet1!F54 -> 306 | B60: =Sheet1!G54 -> English | C60: =Sheet1!H54 -> 9,100.00 | D60: =Sheet1!I54 -> -5,915.56 | F60: 0.00 | H60: 0.00 | J60: 0.00 | K60: 5,915.56 | L60: 15,015.56 | M60: -5,915.56
A61: =Sheet1!F55 -> 307 | B61: =Sheet1!G55 -> Modern Languages | C61: =Sheet1!H55 -> 2,550.00 | D61: =Sheet1!I55 -> 171.33 | F61: 0.00 | H61: 0.00 | J61: 171.33 | K61: 0.00 | L61: 2,378.67 | M61: 171.33
A62: =Sheet1!F56 -> 308 | B62: =Sheet1!G56 -> Humanities | C62: =Sheet1!H56 -> 6,500.00 | D62: =Sheet1!I56 -> 607.44 | F62: 0.00 | H62: 0.00 | J62: 607.44 | K62: 0.00 | L62: 5,892.56 | M62: 607.44
A63: =Sheet1!F57 -> 312 | B63: =Sheet1!G57 -> Social Sciences | C63: =Sheet1!H57 -> 4,150.00 | D63: =Sheet1!I57 -> 1,794.12 | F63: 0.00 | H63: 0.00 | J63: 1,794.12 | K63: 0.00 | L63: 2,355.88 | M63: 1,794.12
A64: =Sheet1!F58 -> 313 | B64: =Sheet1!G58 -> Science | C64: =Sheet1!H58 -> 12,400.00 | D64: =Sheet1!I58 -> 1,904.23 | F64: 0.00 | H64: 0.00 | J64: 1,904.23 | K64: 0.00 | L64: 10,495.77 | M64: 1,904.23
A65: =Sheet1!F59 -> 314 | B65: =Sheet1!G59 -> Business Studies | C65: =Sheet1!H59 -> 1,150.00 | D65: =Sheet1!I59 -> 249.40 | F65: 0.00 | H65: 0.00 | J65: 249.40 | K65: 0.00 | L65: 900.60 | M65: 249.40
A66: =Sheet1!F60 -> 316 | B66: =Sheet1!G60 -> Design & Technology | C66: =Sheet1!H60 -> 0.00 | D66: =Sheet1!I60 -> 0.00 | F66: 0.00 | H66: 0.00 | J66: 0.00 | K66: 0.00 | L66: 0.00 | M66: 0.00
A67: =Sheet1!F61 -> 317 | B67: =Sheet1!G61 -> Computer Science | C67: =Sheet1!H61 -> 1,350.00 | D67: =Sheet1!I61 -> 869.37 | F67: 0.00 | H67: 0.00 | J67: 869.37 | K67: 0.00 | L67: 480.63 | M67: 869.37
A68: =Sheet1!F62 -> 318 | B68: =Sheet1!G62 -> DT & Voc Productions | C68: =Sheet1!H62 -> 0.00 | D68: =Sheet1!I62 -> 0.00 | F68: 0.00 | H68: 0.00 | J68: 0.00 | K68: 0.00 | L68: 0.00 | M68: 0.00
A69: =Sheet1!F63 -> 319 | B69: =Sheet1!G63 -> Mathematics | C69: =Sheet1!H63 -> 10,450.00 | D69: =Sheet1!I63 -> 392.34 | F69: 0.00 | H69: 0.00 | J69: 392.34 | K69: 0.00 | L69: 10,057.66 | M69: 392.34
A70: =Sheet1!F64 -> 320 | B70: =Sheet1!G64 -> Physical Education | C70: =Sheet1!H64 -> 7,000.00 | D70: =Sheet1!I64 -> 734.61 | F70: 0.00 | H70: 0.00 | J70: 734.61 | K70: 0.00 | L70: 6,265.39 | M70: 734.61
A71: =Sheet1!F65 -> 323 | B71: =Sheet1!G65 -> Literacy - Whole School | C71: =Sheet1!H65 -> 400.00 | D71: =Sheet1!I65 -> 90.44 | F71: 0.00 | H71: 0.00 | J71: 90.44 | K71: 0.00 | L71: 309.56 | M71: 90.44
A72: =Sheet1!F66 -> 324 | B72: =Sheet1!G66 -> Numeracy - Whole School | C72: =Sheet1!H66 -> 550.00 | D72: =Sheet1!I66 -> 550.00 | F72: 0.00 | H72: 0.00 | J72: 550.00 | K72: 0.00 | L72: 0.00 | M72: 550.00
A73: =Sheet1!F67 -> 325 | B73: =Sheet1!G67 -> PASS | C73: =Sheet1!H67 -> 1,750.00 | D73: =Sheet1!I67 -> 283.91 | F73: 0.00 | H73: 0.00 | J73: 283.91 | K73: 0.00 | L73: 1,466.09 | M73: 283.91
A74: =Sheet1!F68 -> 326 | B74: =Sheet1!G68 -> School Shop | C74: =Sheet1!H68 -> 0.00 | D74: =Sheet1!I68 -> -4.00 | F74: 0.00 | H74: 0.00 | J74: 0.00 | K74: 4.00 | L74: 4.00 | M74: -4.00
A75: =Sheet1!F69 -> 331 | B75: =Sheet1!G69 -> STEM | C75: =Sheet1!H69 -> 850.00 | D75: =Sheet1!I69 -> 829.95 | F75: 0.00 | H75: 0.00 | J75: 829.95 | K75: 0.00 | L75: 20.05 | M75: 829.95
A76: =Sheet1!F70 -> 332 | B76: =Sheet1!G70 -> Training for Staff | C76: =Sheet1!H70 -> 12,000.00 | D76: =Sheet1!I70 -> -4,782.86 | F76: 0.00 | H76: 0.00 | J76: 0.00 | K76: 4,782.86 | L76: 16,782.86 | M76: -4,782.86
A77: =Sheet1!F71 -> 333 | B77: =Sheet1!G71 -> Media Studies | C77: =Sheet1!H71 -> 700.00 | D77: =Sheet1!I71 -> 389.30 | F77: 0.00 | H77: 0.00 | J77: 389.30 | K77: 0.00 | L77: 310.70 | M77: 389.30
A78: =Sheet1!F72 -> 335 | B78: =Sheet1!G72 -> Engineering | C78: =Sheet1!H72 -> 3,400.00 | D78: =Sheet1!I72 -> 3,307.45 | F78: 0.00 | H78: 0.00 | J78: 3,307.45 | K78: 0.00 | L78: 92.55 | M78: 3,307.45
A79: =Sheet1!F73 -> 336 | B79: =Sheet1!G73 -> Vocational Animals | C79: =Sheet1!H73 -> 250.00 | D79: =Sheet1!I73 -> 167.45 | F79: 0.00 | H79: 0.00 | J79: 167.45 | K79: 0.00 | L79: 82.55 | M79: 167.45
A80: =Sheet1!F74 -> 337 | B80: =Sheet1!G74 -> KS3 Pre-Vocational | C80: =Sheet1!H74 -> 600.00 | D80: =Sheet1!I74 -> 518.11 | F80: 0.00 | H80: 0.00 | J80: 518.11 | K80: 0.00 | L80: 81.89 | M80: 518.11
A81: =Sheet1!F75 -> 338 | B81: =Sheet1!G75 -> Tutorial | C81: =Sheet1!H75 -> 0.00 | D81: =Sheet1!I75 -> 0.00 | F81: 0.00 | H81: 0.00 | J81: 0.00 | K81: 0.00 | L81: 0.00 | M81: 0.00
A82: =Sheet1!F76 -> 340 | B82: =Sheet1!G76 -> Pastoral | C82: =Sheet1!H76 -> 3,000.00 | D82: =Sheet1!I76 -> 636.14 | F82: 0.00 | H82: 0.00 | J82: 636.14 | K82: 0.00 | L82: 2,363.86 | M82: 636.14
A83: =Sheet1!F77 -> 341 | B83: =Sheet1!G77 -> Safeguarding & Support | C83: =Sheet1!H77 -> 2,750.00 | D83: =Sheet1!I77 -> 1,226.72 | F83: 0.00 | H83: 0.00 | J83: =IF($D83+$F83-$H83>0,SUM($D83+$F83-$H83),0) -> 1,226.72 | K83: =(IF($D83+$F83-$H83<=0,(SUM($D83+$F83-$H83)*-1),0)) -> 0.00 | L83: =IF($E83="L",C83,C83-J83+K83) -> 1,523.28 | M83: =IF($E83="L",0,J83-K83) -> 1,226.72
A84: =Sheet1!F78 -> 342 | B84: =Sheet1!G78 -> Pastoral-Sixth Fm-Raised Money | C84: =Sheet1!H78 -> 0.00 | D84: =Sheet1!I78 -> 0.00 | F84: 0.00 | H84: 0.00 | J84: 0.00 | K84: 0.00 | L84: 0.00 | M84: 0.00
A85: =Sheet1!F79 -> 344 | B85: =Sheet1!G79 -> Primary Liaison | C85: =Sheet1!H79 -> 200.00 | D85: =Sheet1!I79 -> 200.00 | F85: 0.00 | H85: 0.00 | J85: 200.00 | K85: 0.00 | L85: 0.00 | M85: 200.00
A86: =Sheet1!F80 -> 346 | B86: =Sheet1!G80 -> Sixth Form | C86: =Sheet1!H80 -> 1,500.00 | D86: =Sheet1!I80 -> 501.37 | F86: 0.00 | H86: 0.00 | J86: 501.37 | K86: 0.00 | L86: 998.63 | M86: 501.37
A87: =Sheet1!F81 -> 349 | B87: =Sheet1!G81 -> Student Council | C87: =Sheet1!H81 -> 100.00 | D87: =Sheet1!I81 -> 500.00 | F87: 0.00 | H87: 0.00 | J87: 500.00 | K87: 0.00 | L87: -400.00 | M87: 500.00
A88: =Sheet1!F82 -> 350 | B88: =Sheet1!G82 -> Year 11- Work Experience | C88: =Sheet1!H82 -> 300.00 | D88: =Sheet1!I82 -> 398.12 | F88: 0.00 | H88: 0.00 | J88: 398.12 | K88: 0.00 | L88: -98.12 | M88: 398.12
A89: =Sheet1!F83 -> 351 | B89: =Sheet1!G83 -> Bursary Funding-14-19 | C89: =Sheet1!H83 -> 17,509.00 | D89: =Sheet1!I83 -> 4,731.84 | F89: 0.00 | H89: =D89 -> 4731.84 | J89: 0.00 | K89: 0.00 | L89: 17,509.00 | M89: 0.00
A90: =Sheet1!F84 -> 354 | B90: =Sheet1!G84 -> Pupil Premium | C90: =Sheet1!H84 -> 19,743.00 | D90: =Sheet1!I84 -> 2,615.92 | F90: 0.00 | H90: =D90 -> 2615.92 | J90: 0.00 | K90: 0.00 | L90: 19,743.00 | M90: 0.00
A91: =Sheet1!F85 -> 354A | B91: =Sheet1!G85 -> Pupil Premium-Catch Up | C91: =Sheet1!H85 -> 6,543.00 | D91: =Sheet1!I85 -> 6,543.00 | F91: 0.00 | H91: 6543.00 | J91: 0.00 | K91: 0.00 | L91: 6,543.00 | M91: 0.00
A92: =Sheet1!F86 -> 355 | B92: =Sheet1!G86 -> Pupil Premium Staffing | C92: =Sheet1!H86 -> 138,838.00 | D92: =Sheet1!I86 -> 0.00 | F92: 0.00 | H92: 0.00 | J92: 0.00 | K92: 0.00 | L92: 138,838.00 | M92: 0.00
A93: =Sheet1!F87 -> 357 | B93: =Sheet1!G87 -> Stretch & Challenge | C93: =Sheet1!H87 -> 0.00 | D93: =Sheet1!I87 -> 0.00 | F93: 0.00 | H93: 0.00 | J93: 0.00 | K93: 0.00 | L93: 0.00 | M93: 0.00
A94: =Sheet1!F88 -> 358 | B94: =Sheet1!G88 -> Careers | C94: =Sheet1!H88 -> 14,600.00 | D94: =Sheet1!I88 -> 3,709.15 | F94: 0.00 | H94: 0.00 | J94: 3,709.15 | K94: 0.00 | L94: 10,890.85 | M94: 3,709.15
A95: =Sheet1!F89 -> 360 | B95: =Sheet1!G89 -> Do not use | C95: =Sheet1!H89 -> 0.00 | D95: =Sheet1!I89 -> 0.00 | F95: 0.00 | H95: 0.00 | J95: 0.00 | K95: 0.00 | L95: 0.00 | M95: 0.00
A96: =Sheet1!F90 -> 365 | B96: =Sheet1!G90 -> Cricket School | C96: =Sheet1!H90 -> 3,500.00 | D96: =Sheet1!I90 -> 554.28 | F96: 0.00 | H96: 0.00 | J96: 554.28 | K96: 0.00 | L96: 2,945.72 | M96: 554.28
A97: =Sheet1!F91 -> 366 | B97: =Sheet1!G91 -> Football Academy | C97: =Sheet1!H91 -> 20,700.00 | D97: =Sheet1!I91 -> 2,360.30 | F97: 0.00 | H97: 0.00 | J97: 2,360.30 | K97: 0.00 | L97: 18,339.70 | M97: 2,360.30
A98: =Sheet1!F92 -> 367 | B98: =Sheet1!G92 -> Duke of Edinburgh Award | C98: =Sheet1!H92 -> 1,064.00 | D98: =Sheet1!I92 -> 1,061.00 | F98: 0.00 | H98: 0.00 | J98: 1,061.00 | K98: 0.00 | L98: 3.00 | M98: 1,061.00
A99: =Sheet1!F93 -> 369 | B99: =Sheet1!G93 -> School Improvement | C99: =Sheet1!H93 -> 27,000.00 | D99: =Sheet1!I93 -> 2,872.28 | F99: 0.00 | H99: 0.00 | J99: 2,872.28 | K99: 0.00 | L99: 24,127.72 | M99: 2,872.28
A100: =Sheet1!F94 -> 370 | B100: =Sheet1!G94 -> School Improvement - DFC | C100: =Sheet1!H94 -> 72,932.00 | D100: =Sheet1!I94 -> -20,290.06 | E100: C | F100: 20290.06 | G100: Capital overspend from contingency | H100: 0.00 | J100: 0.00 | K100: 0.00 | L100: 72,932.00 | M100: 0.00
A101: =Sheet1!F95 -> 502 | B101: =Sheet1!G95 -> Catering Maintenance | C101: =Sheet1!H95 -> 12,500.00 | D101: =Sheet1!I95 -> -16,212.90 | F101: 0.00 | H101: 0.00 | J101: 0.00 | K101: 16,212.90 | L101: 28,712.90 | M101: -16,212.90
A102: =Sheet1!F96 -> 503 | B102: =Sheet1!G96 -> Communications-Telephone/Fax | C102: =Sheet1!H96 -> 12,000.00 | D102: =Sheet1!I96 -> -4,611.42 | F102: 0.00 | H102: 0.00 | J102: 0.00 | K102: 4,611.42 | L102: 16,611.42 | M102: -4,611.42
A103: =Sheet1!F97 -> 504 | B103: =Sheet1!G97 -> Departmental Services | C103: =Sheet1!H97 -> 0.00 | D103: =Sheet1!I97 -> 9,472.17 | F103: 0.00 | H103: 0.00 | J103: 9,472.17 | K103: 0.00 | L103: -9,472.17 | M103: 9,472.17
A104: =Sheet1!F98 -> 505 | B104: =Sheet1!G98 -> Exam Fees/Costs | C104: =Sheet1!H98 -> 125,000.00 | D104: =Sheet1!I98 -> 16,186.20 | F104: 0.00 | H104: 0.00 | J104: 16,186.20 | K104: 0.00 | L104: 108,813.80 | M104: 16,186.20
A105: =Sheet1!F99 -> 506 | B105: =Sheet1!G99 -> First Aid | C105: =Sheet1!H99 -> 450.00 | D105: =Sheet1!I99 -> 28.75 | F105: 0.00 | H105: 0.00 | J105: 28.75 | K105: 0.00 | L105: 421.25 | M105: 28.75
A106: =Sheet1!F100 -> 508 | B106: =Sheet1!G100 -> Combined Cadet Force | C106: =Sheet1!H100 -> 2,946.00 | D106: =Sheet1!I100 -> -995.41 | F106: 0.00 | H106: 0.00 | J106: 0.00 | K106: 995.41 | L106: 3,941.41 | M106: -995.41
A107: =Sheet1!F101 -> 509 | B107: =Sheet1!G101 -> Jack Petchey Foundation Awards | C107: =Sheet1!H101 -> 1,601.00 | D107: =Sheet1!I101 -> 2,636.41 | F107: 0.00 | H107: 0.00 | J107: 2,636.41 | K107: 0.00 | L107: -1,035.41 | M107: 2,636.41
A108: =Sheet1!F102 -> 510 | B108: =Sheet1!G102 -> Library | C108: =Sheet1!H102 -> 2,500.00 | D108: =Sheet1!I102 -> 299.76 | F108: 0.00 | H108: 0.00 | J108: 299.76 | K108: 0.00 | L108: 2,200.24 | M108: 299.76
A109: =Sheet1!F103 -> 512 | B109: =Sheet1!G103 -> Production Maintenance | C109: =Sheet1!H103 -> 24.00 | D109: =Sheet1!I103 -> 78.40 | F109: 0.00 | H109: =D109 -> 78.40 | J109: 0.00 | K109: 0.00 | L109: 24.00 | M109: 0.00
A110: =Sheet1!F104 -> 513 | B110: =Sheet1!G104 -> Minibus Expenditure | C110: =Sheet1!H104 -> 20,500.00 | D110: =Sheet1!I104 -> 1,658.57 | F110: 0.00 | H110: 0.00 | J110: 1,658.57 | K110: 0.00 | L110: 18,841.43 | M110: 1,658.57
A111: =Sheet1!F105 -> 514 | B111: =Sheet1!G105 -> Music Tuition | C111: =Sheet1!H105 -> 0.00 | D111: =Sheet1!I105 -> 2,936.21 | F111: 0.00 | H111: 0.00 | J111: 2,936.21 | K111: 0.00 | L111: -2,936.21 | M111: 2,936.21
A112: =Sheet1!F106 -> 515 | B112: =Sheet1!G106 -> Office Expenses-Admin | C112: =Sheet1!H106 -> 3,000.00 | D112: =Sheet1!I106 -> 251.35 | F112: 0.00 | H112: 0.00 | J112: 251.35 | K112: 0.00 | L112: 2,748.65 | M112: 251.35
A113: =Sheet1!F107 -> 516 | B113: =Sheet1!G107 -> Other Income | C113: =Sheet1!H107 -> -10,000.00 | D113: =Sheet1!I107 -> 12,405.71 | F113: 0.00 | H113: 0.00 | J113: 12,405.71 | K113: 0.00 | L113: -22,405.71 | M113: 12,405.71
A114: =Sheet1!F108 -> 517 | B114: =Sheet1!G108 -> Hospitality Costs | C114: =Sheet1!H108 -> 3,000.00 | D114: =Sheet1!I108 -> 1,569.84 | F114: 0.00 | H114: 0.00 | J114: 1,569.84 | K114: 0.00 | L114: 1,430.16 | M114: 1,569.84
A115: =Sheet1!F109 -> 518 | B115: =Sheet1!G109 -> Postage | C115: =Sheet1!H109 -> 3,550.00 | D115: =Sheet1!I109 -> 17.00 | F115: 0.00 | H115: 0.00 | J115: 17.00 | K115: 0.00 | L115: 3,533.00 | M115: 17.00
A116: =Sheet1!F110 -> 519 | B116: =Sheet1!G110 -> Professional Fees-School | C116: =Sheet1!H110 -> 62,000.00 | D116: =Sheet1!I110 -> 6,904.09 | F116: 0.00 | H116: 0.00 | J116: 6,904.09 | K116: 0.00 | L116: 55,095.91 | M116: 6,904.09
A117: =Sheet1!F111 -> 520 | B117: =Sheet1!G111 -> Pupil Travel | C117: =Sheet1!H111 -> 0.00 | D117: =Sheet1!I111 -> 156.00 | F117: 0.00 | H117: 0.00 | J117: 156.00 | K117: 0.00 | L117: -156.00 | M117: 156.00
A118: =Sheet1!F112 -> 522 | B118: =Sheet1!G112 -> Irrecoverable VAT | C118: =Sheet1!H112 -> 2,500.00 | D118: =Sheet1!I112 -> -321.77 | F118: 0.00 | H118: 0.00 | J118: 0.00 | K118: 321.77 | L118: 2,821.77 | M118: -321.77
A119: =Sheet1!F113 -> 523 | B119: =Sheet1!G113 -> Sports & Coaching Services | C119: =Sheet1!H113 -> 6,000.00 | D119: =Sheet1!I113 -> 1,159.77 | F119: 0.00 | H119: 0.00 | J119: 1,159.77 | K119: 0.00 | L119: 4,840.23 | M119: 1,159.77
A120: =Sheet1!F114 -> 526 | B120: =Sheet1!G114 -> Staff Recruitment/ Advertising | C120: =Sheet1!H114 -> 12,250.00 | D120: =Sheet1!I114 -> 4,464.72 | F120: 0.00 | H120: 0.00 | J120: 4,464.72 | K120: 0.00 | L120: 7,785.28 | M120: 4,464.72
A121: =Sheet1!F115 -> 527 | B121: =Sheet1!G115 -> Marketing-Headteacher | C121: =Sheet1!H115 -> 5,000.00 | D121: =Sheet1!I115 -> 2,096.27 | F121: 0.00 | H121: 0.00 | J121: 2,096.27 | K121: 0.00 | L121: 2,903.73 | M121: 2,096.27
A122: =Sheet1!F116 -> 531 | B122: =Sheet1!G116 -> Pupil Exclusion/Referral | C122: =Sheet1!H116 -> 17,191.00 | D122: =Sheet1!I116 -> 0.85 | F122: 0.00 | H122: 0.00 | J122: 0.85 | K122: 0.00 | L122: 17,190.15 | M122: 0.85
A123: =Sheet1!F117 -> 532 | B123: =Sheet1!G117 -> Interventions | C123: =Sheet1!H117 -> 500.00 | D123: =Sheet1!I117 -> 400.33 | F123: 0.00 | H123: 0.00 | J123: 400.33 | K123: 0.00 | L123: 99.67 | M123: 400.33
A124: =Sheet1!F118 -> 533 | B124: =Sheet1!G118 -> PREP/Parent Council | C124: =Sheet1!H118 -> 1,750.00 | D124: =Sheet1!I118 -> 280.13 | F124: 0.00 | H124: 0.00 | J124: 280.13 | K124: 0.00 | L124: 1,469.87 | M124: 280.13
A125: =Sheet1!F119 -> 534 | B125: =Sheet1!G119 -> Research | C125: =Sheet1!H119 -> 500.00 | D125: =Sheet1!I119 -> 499.20 | F125: 0.00 | H125: 0.00 | J125: 499.20 | K125: 0.00 | L125: 0.80 | M125: 499.20
A126: =Sheet1!F120 -> 536 | B126: =Sheet1!G120 -> Field Study Support | C126: =Sheet1!H120 -> 3,500.00 | D126: =Sheet1!I120 -> 906.86 | F126: 0.00 | H126: 0.00 | J126: 906.86 | K126: 0.00 | L126: 2,593.14 | M126: 906.86
A127: =Sheet1!F121 -> 539 | B127: =Sheet1!G121 -> Alternative Education-JIC | C127: =Sheet1!H121 -> 12,000.00 | D127: =Sheet1!I121 -> -94.94 | F127: 0.00 | H127: 0.00 | J127: 0.00 | K127: 94.94 | L127: 12,094.94 | M127: -94.94
A128: =Sheet1!F122 -> 540 | B128: =Sheet1!G122 -> Catering Income | C128: =Sheet1!H122 -> 0.00 | D128: =Sheet1!I122 -> 0.00 | F128: 0.00 | H128: 0.00 | J128: 0.00 | K128: 0.00 | L128: 0.00 | M128: 0.00
A129: =Sheet1!F123 -> 541 | B129: =Sheet1!G123 -> NEET Intervention Activities | C129: =Sheet1!H123 -> 0.00 | D129: =Sheet1!I123 -> 0.00 | F129: 0.00 | H129: 0.00 | J129: 0.00 | K129: 0.00 | L129: 0.00 | M129: 0.00
A130: =Sheet1!F124 -> 542 | B130: =Sheet1!G124 -> .Do not use | C130: =Sheet1!H124 -> 0.00 | D130: =Sheet1!I124 -> 0.00 | F130: 0.00 | H130: 0.00 | J130: 0.00 | K130: 0.00 | L130: 0.00 | M130: 0.00
A131: =Sheet1!F125 -> 544 | B131: =Sheet1!G125 -> Governors | C131: =Sheet1!H125 -> 2,200.00 | D131: =Sheet1!I125 -> 702.90 | F131: 0.00 | H131: 0.00 | J131: 702.90 | K131: 0.00 | L131: 1,497.10 | M131: 702.90
A132: =Sheet1!F126 -> 545 | B132: =Sheet1!G126 -> Charity Collections | C132: =Sheet1!H126 -> 0.00 | D132: =Sheet1!I126 -> 0.62 | F132: 0.00 | H132: 0.00 | J132: 0.62 | K132: 0.00 | L132: -0.62 | M132: 0.62
A133: =Sheet1!F127 -> 546 | B133: =Sheet1!G127 -> X3 Refurb Fundraising | C133: =Sheet1!H127 -> 0.00 | D133: =Sheet1!I127 -> 200.00 | F133: 0.00 | H133: =D133 -> 200.00 | J133: 0.00 | K133: 0.00 | L133: 0.00 | M133: 0.00
A134: =Sheet1!F128 -> 548 | B134: =Sheet1!G128 -> IT-Maintenance | C134: =Sheet1!H128 -> 94,000.00 | D134: =Sheet1!I128 -> 2,959.39 | F134: 0.00 | H134: 0.00 | J134: 2,959.39 | K134: 0.00 | L134: 91,040.61 | M134: 2,959.39
A135: =Sheet1!F129 -> 550 | B135: =Sheet1!G129 -> Parent Donations | C135: =Sheet1!H129 -> -5,250.00 | D135: =Sheet1!I129 -> 1,961.50 | F135: 0.00 | H135: 0.00 | J135: 1,961.50 | K135: 0.00 | L135: -7,211.50 | M135: 1,961.50
A136: =Sheet1!F130 -> 552 | B136: =Sheet1!G130 -> Staffroom Fund | C136: =Sheet1!H130 -> 1,025.00 | D136: =Sheet1!I130 -> 106.17 | F136: 0.00 | H136: =D136 -> 106.17 | J136: 0.00 | K136: 0.00 | L136: 1,025.00 | M136: 0.00
A137: =Sheet1!F131 -> 553 | B137: =Sheet1!G131 -> SHS PTA | C137: =Sheet1!H131 -> 0.00 | D137: =Sheet1!I131 -> 0.00 | F137: 0.00 | H137: 0.00 | J137: 0.00 | K137: 0.00 | L137: 0.00 | M137: 0.00
A138: =Sheet1!F132 -> 557 | B138: =Sheet1!G132 -> SLT | C138: =Sheet1!H132 -> 0.00 | D138: =Sheet1!I132 -> 0.00 | F138: 0.00 | H138: 0.00 | J138: 0.00 | K138: 0.00 | L138: 0.00 | M138: 0.00
A139: =Sheet1!F133 -> 560 | B139: =Sheet1!G133 -> Communications-Maintenance | C139: =Sheet1!H133 -> 1,000.00 | D139: =Sheet1!I133 -> 153.76 | F139: 0.00 | H139: 0.00 | J139: 153.76 | K139: 0.00 | L139: 846.24 | M139: 153.76
A140: =Sheet1!F134 -> 564 | B140: =Sheet1!G134 -> Free School Meals-Students | C140: =Sheet1!H134 -> 42,000.00 | D140: =Sheet1!I134 -> 13,479.00 | F140: 0.00 | H140: 0.00 | J140: 13,479.00 | K140: 0.00 | L140: 28,521.00 | M140: 13,479.00
A141: =Sheet1!F135 -> 565 | B141: =Sheet1!G135 -> Free School Meals-Staff | C141: =Sheet1!H135 -> 11,000.00 | D141: =Sheet1!I135 -> 2,115.93 | F141: 0.00 | H141: 0.00 | J141: 2,115.93 | K141: 0.00 | L141: 8,884.07 | M141: 2,115.93
A142: =Sheet1!F136 -> 576 | B142: =Sheet1!G136 -> Oasis Centre | C142: =Sheet1!H136 -> 900.00 | D142: =Sheet1!I136 -> 308.08 | F142: 0.00 | H142: 0.00 | J142: 308.08 | K142: 0.00 | L142: 591.92 | M142: 308.08
A143: =Sheet1!F137 -> 600 | B143: =Sheet1!G137 -> Working Environment | C143: =Sheet1!H137 -> 5,500.00 | D143: =Sheet1!I137 -> -2,441.12 | F143: 0.00 | H143: 0.00 | J143: 0.00 | K143: 2,441.12 | L143: 7,941.12 | M143: -2,441.12
A144: =Sheet1!F138 -> 601 | B144: =Sheet1!G138 -> Licences/Subscriptions/Fees | C144: =Sheet1!H138 -> 11,500.00 | D144: =Sheet1!I138 -> 1,698.12 | F144: 0.00 | H144: 0.00 | J144: 1,698.12 | K144: 0.00 | L144: 9,801.88 | M144: 1,698.12
A145: =Sheet1!F139 -> 602 | B145: =Sheet1!G139 -> Cleaning | C145: =Sheet1!H139 -> 175,600.00 | D145: =Sheet1!I139 -> -2,430.49 | F145: 0.00 | H145: 0.00 | J145: 0.00 | K145: 2,430.49 | L145: 178,030.49 | M145: -2,430.49
A146: =Sheet1!F140 -> 603 | B146: =Sheet1!G140 -> Devolved Formula Capital | C146: =Sheet1!H140 -> 0.00 | D146: =Sheet1!I140 -> 0.00 | F146: 0.00 | H146: 0.00 | J146: 0.00 | K146: 0.00 | L146: 0.00 | M146: 0.00
A147: =Sheet1!F141 -> 604 | B147: =Sheet1!G141 -> Furniture&Equipment | C147: =Sheet1!H141 -> 2,500.00 | D147: =Sheet1!I141 -> 1,419.53 | F147: 0.00 | H147: 0.00 | J147: =IF($D147+$F147-$H147>0,SUM($D147+$F147-$H147),0) -> 1,419.53 | K147: =(IF($D147+$F147-$H147<=0,(SUM($D147+$F147-$H147)*-1),0)) -> 0.00 | L147: =IF($E147="L",C147,C147-J147+K147) -> 1,080.47 | M147: =IF($E147="L",0,J147-K147) -> 1,419.53
A148: =Sheet1!F142 -> 605 | B148: =Sheet1!G142 -> General Buildings&Premises Maint | C148: =Sheet1!H142 -> 54,000.00 | D148: =Sheet1!I142 -> 4,026.64 | F148: 0.00 | H148: 0.00 | J148: 4,026.64 | K148: 0.00 | L148: 49,973.36 | M148: 4,026.64
A149: =Sheet1!F143 -> 606 | B149: =Sheet1!G143 -> Grounds Upkeep | C149: =Sheet1!H143 -> 15,000.00 | D149: =Sheet1!I143 -> 79.51 | F149: 0.00 | H149: 0.00 | J149: 79.51 | K149: 0.00 | L149: 14,920.49 | M149: 79.51
A150: =Sheet1!F144 -> 607 | B150: =Sheet1!G144 -> Insurance-Buildings&Contents | C150: =Sheet1!H144 -> 33,500.00 | D150: =Sheet1!I144 -> 10,325.49 | F150: 0.00 | H150: 0.00 | J150: 10,325.49 | K150: 0.00 | L150: 23,174.51 | M150: 10,325.49
A151: =Sheet1!F145 -> 608 | B151: =Sheet1!G145 -> Rates | C151: =Sheet1!H145 -> 34,442.00 | D151: =Sheet1!I145 -> 659.00 | F151: 0.00 | H151: 0.00 | J151: 659.00 | K151: 0.00 | L151: 33,783.00 | M151: 659.00
A152: =Sheet1!F146 -> 609 | B152: =Sheet1!G146 -> Lettings&Rents | C152: =Sheet1!H146 -> -65,000.00 | D152: =Sheet1!I146 -> -27,728.73 | F152: 0.00 | H152: 0.00 | J152: 0.00 | K152: 27,728.73 | L152: -37,271.27 | M152: -27,728.73
A153: =Sheet1!F147 -> 611 | B153: =Sheet1!G147 -> Swimming Pool | C153: =Sheet1!H147 -> 9,000.00 | D153: =Sheet1!I147 -> 5,493.53 | F153: 0.00 | H153: 0.00 | J153: 5,493.53 | K153: 0.00 | L153: 3,506.47 | M153: 5,493.53
A154: =Sheet1!F148 -> 612 | B154: =Sheet1!G148 -> Water | C154: =Sheet1!H148 -> 30,000.00 | D154: =Sheet1!I148 -> 4,309.41 | F154: 0.00 | H154: 0.00 | J154: 4,309.41 | K154: 0.00 | L154: 25,690.59 | M154: 4,309.41
A155: =Sheet1!F149 -> 613 | B155: =Sheet1!G149 -> Energy | C155: =Sheet1!H149 -> 144,000.00 | D155: =Sheet1!I149 -> -23,769.44 | F155: 0.00 | H155: 0.00 | J155: 0.00 | K155: 23,769.44 | L155: 167,769.44 | M155: -23,769.44
A156: =Sheet1!F150 -> 614 | B156: =Sheet1!G150 -> Salix Loan | C156: =Sheet1!H150 -> 22,880.00 | D156: =Sheet1!I150 -> 1,072.00 | F156: 0.00 | H156: 0.00 | J156: 1,072.00 | K156: 0.00 | L156: 21,808.00 | M156: 1,072.00
A157: =Sheet1!F151 -> 614A | B157: =Sheet1!G151 -> Salix Loan long term liability | C157: =Sheet1!H151 -> 0.00 | D157: =Sheet1!I151 -> 21,808.00 | F157: 0.00 | H157: 21808.00 | J157: 0.00 | K157: 0.00 | L157: 0.00 | M157: 0.00
A158: =Sheet1!F152 -> 615 | B158: =Sheet1!G152 -> Insurance Claims-Costs | C158: =Sheet1!H152 -> 0.00 | D158: =Sheet1!I152 -> -18,521.04 | F158: 0.00 | H158: 0.00 | J158: 0.00 | K158: 18,521.04 | L158: 18,521.04 | M158: -18,521.04
A159: =Sheet1!F153 -> 615A | B159: =Sheet1!G153 -> Insurance Claims-Income | C159: =Sheet1!H153 -> 0.00 | D159: =Sheet1!I153 -> 18,021.04 | F159: 0.00 | H159: 0.00 | J159: 18,021.04 | K159: 0.00 | L159: -18,021.04 | M159: 18,021.04
A160: =Sheet1!F154 -> 616 | B160: =Sheet1!G154 -> CIF Loan | C160: =Sheet1!H154 -> 0.00 | D160: =Sheet1!I154 -> 0.00 | F160: 0.00 | H160: 0.00 | J160: 0.00 | K160: 0.00 | L160: 0.00 | M160: 0.00
A161: =Sheet1!F155 -> 616A | B161: =Sheet1!G155 -> CIF Loan Long Term Liability | C161: =Sheet1!H155 -> 0.00 | D161: =Sheet1!I155 -> 0.00 | F161: 0.00 | H161: 0.00 | J161: 0.00 | K161: 0.00 | L161: 0.00 | M161: 0.00
A162: =Sheet1!F156 -> 640 | B162: =Sheet1!G156 -> Sports Hall Income | C162: =Sheet1!H156 -> -35,000.00 | D162: =Sheet1!I156 -> -13,165.00 | F162: 0.00 | H162: 0.00 | J162: 0.00 | K162: 13,165.00 | L162: -21,835.00 | M162: -13,165.00
A163: =Sheet1!F157 -> 640A | B163: =Sheet1!G157 -> Sports Hall Exp | C163: =Sheet1!H157 -> 2,000.00 | D163: =Sheet1!I157 -> 835.06 | F163: 0.00 | H163: 0.00 | J163: 835.06 | K163: 0.00 | L163: 1,164.94 | M163: 835.06
A164: =Sheet1!F158 -> 649 | B164: =Sheet1!G158 -> Bwt Forward-Capital | C164: =Sheet1!H158 -> -83,298.00 | D164: =Sheet1!I158 -> -83,298.00 | F164: 83298.00 | H164: 0.00 | J164: 0.00 | K164: 0.00 | L164: -83,298.00 | M164: 0.00
A165: =Sheet1!F159 -> 650 | B165: =Sheet1!G159 -> S106 Build Exp | C165: =Sheet1!H159 -> 0.00 | D165: =Sheet1!I159 -> 0.00 | F165: 0.00 | H165: 0.00 | J165: 0.00 | K165: 0.00 | L165: 0.00 | M165: 0.00
A166: =Sheet1!F160 -> 651 | B166: =Sheet1!G160 -> EFA Capital Maint-Roofing-Exp | C166: =Sheet1!H160 -> 0.00 | D166: =Sheet1!I160 -> 0.00 | F166: 0.00 | H166: 0.00 | J166: 0.00 | K166: 0.00 | L166: 0.00 | M166: 0.00
A167: =Sheet1!F161 -> 652 | B167: =Sheet1!G161 -> EFA Capital Cladding 17 Expenses | C167: =Sheet1!H161 -> 0.00 | D167: =Sheet1!I161 -> 0.00 | F167: 0.00 | H167: 0.00 | J167: 0.00 | K167: 0.00 | L167: 0.00 | M167: 0.00
A168: =Sheet1!F162 -> 653 | B168: =Sheet1!G162 -> EFA Capital Roofing 17-Exps | C168: =Sheet1!H162 -> 0.00 | D168: =Sheet1!I162 -> 0.00 | F168: 0.00 | H168: 0.00 | J168: 0.00 | K168: 0.00 | L168: 0.00 | M168: 0.00
A169: =Sheet1!F163 -> 654 | B169: =Sheet1!G163 -> EFA Windows 2015 Exp | C169: =Sheet1!H163 -> 0.00 | D169: =Sheet1!I163 -> 0.00 | F169: 0.00 | H169: 0.00 | J169: 0.00 | K169: 0.00 | L169: 0.00 | M169: 0.00
A170: =Sheet1!F164 -> 656 | B170: =Sheet1!G164 -> EFA-Capital Maint-Pipes 2014-Exp | C170: =Sheet1!H164 -> 0.00 | D170: =Sheet1!I164 -> 0.00 | F170: 0.00 | H170: 0.00 | J170: 0.00 | K170: 0.00 | L170: 0.00 | M170: 0.00
A171: =Sheet1!F165 -> 657 | B171: =Sheet1!G165 -> EFA Capital-Pipes 16-17 Expenses | C171: =Sheet1!H165 -> 0.00 | D171: =Sheet1!I165 -> 0.00 | F171: 0.00 | H171: 0.00 | J171: 0.00 | K171: 0.00 | L171: 0.00 | M171: 0.00
A172: =Sheet1!F166 -> 658 | B172: =Sheet1!G166 -> ESFA Capital-Fire Safety 19-Exp | C172: =Sheet1!H166 -> 81,935.00 | D172: =Sheet1!I166 -> -4,486.45 | F172: 0.00 | H172: 0.00 | J172: 0.00 | K172: 4,486.45 | L172: 86,421.45 | M172: -4,486.45
A173: =Sheet1!F167 -> 670 | B173: =Sheet1!G167 -> Summer Works 2013 | C173: =Sheet1!H167 -> 0.00 | D173: =Sheet1!I167 -> 0.00 | F173: 0.00 | H173: 0.00 | J173: 0.00 | K173: 0.00 | L173: 0.00 | M173: 0.00
A174: =Sheet1!F168 -> 703 | B174: =Sheet1!G168 -> Year end journals | C174: =Sheet1!H168 -> 0.00 | D174: =Sheet1!I168 -> 0.00 | F174: 0.00 | H174: 0.00 | J174: 0.00 | K174: 0.00 | L174: 0.00 | M174: 0.00
A175: =Sheet1!F169 -> AGP0101 | B175: =Sheet1!G169 -> Artificial Pitch Income | C175: =Sheet1!H169 -> -60,000.00 | D175: =Sheet1!I169 -> -11,300.00 | F175: 0.00 | H175: 0.00 | J175: 0.00 | K175: 11,300.00 | L175: -48,700.00 | M175: -11,300.00
A176: =Sheet1!F170 -> AGP0201 | B176: =Sheet1!G170 -> Artificial Pitch Expenditure | C176: =Sheet1!H170 -> 5,000.00 | D176: =Sheet1!I170 -> 2,019.95 | F176: 0.00 | H176: 0.00 | J176: 2,019.95 | K176: 0.00 | L176: 2,980.05 | M176: 2,019.95
A177: =Sheet1!F171 -> AGP0202 | B177: =Sheet1!G171 -> Artifical Pitch Sinking Fund | C177: =Sheet1!H171 -> 105,000.00 | D177: =Sheet1!I171 -> 105,000.00 | F177: 0.00 | H177: =D177 -> 105000.00 | J177: 0.00 | K177: 0.00 | L177: 105,000.00 | M177: 0.00
A178: =Sheet1!F172 -> BADDEBT | B178: =Sheet1!G172 -> Bad Debt-A/C's Receivable | C178: =Sheet1!H172 -> 0.00 | D178: =Sheet1!I172 -> 0.00 | F178: 0.00 | H178: 0.00 | J178: 0.00 | K178: 0.00 | L178: 0.00 | M178: 0.00
A179: =Sheet1!F173 -> BS410 | B179: =Sheet1!G173 -> BESS-Pilates Course | C179: =Sheet1!H173 -> 0.00 | D179: =Sheet1!I173 -> 171.81 | F179: 0.00 | H179: =D179 -> 171.81 | J179: 0.00 | K179: 0.00 | L179: 0.00 | M179: 0.00
A180: =Sheet1!F174 -> BS414 | B180: =Sheet1!G174 -> BESS-Yoga Course | C180: =Sheet1!H174 -> 0.00 | D180: =Sheet1!I174 -> 0.00 | F180: 0.00 | H180: 0.00 | J180: 0.00 | K180: 0.00 | L180: 0.00 | M180: 0.00
A181: =Sheet1!F175 -> GTP204 | B181: =Sheet1!G175 -> GTP Salaries-Exp | C181: =Sheet1!H175 -> 0.00 | D181: =Sheet1!I175 -> 0.00 | F181: 0.00 | H181: 0.00 | J181: 0.00 | K181: 0.00 | L181: 0.00 | M181: 0.00
A182: =Sheet1!F176 -> GTP205 | B182: =Sheet1!G176 -> GTP-Income-Staff Salarie | C182: =Sheet1!H176 -> 0.00 | D182: =Sheet1!I176 -> 0.00 | F182: 0.00 | H182: 0.00 | J182: 0.00 | K182: 0.00 | L182: 0.00 | M182: 0.00
A183: =Sheet1!F177 -> GTP207 | B183: =Sheet1!G177 -> GTP-Income-Accomodation/Admin | C183: =Sheet1!H177 -> 0.00 | D183: =Sheet1!I177 -> 0.00 | F183: 0.00 | H183: 0.00 | J183: 0.00 | K183: 0.00 | L183: 0.00 | M183: 0.00
A184: =Sheet1!F178 -> JG001 | B184: =Sheet1!G178 -> Just Giving | C184: =Sheet1!H178 -> 0.00 | D184: =Sheet1!I178 -> 0.00 | F184: 0.00 | H184: 0.00 | J184: 0.00 | K184: 0.00 | L184: 0.00 | M184: 0.00
A185: =Sheet1!F179 -> SCT201 | B185: =Sheet1!G179 -> SCITT Accom/Admin Inc | C185: =Sheet1!H179 -> 0.00 | D185: =Sheet1!I179 -> 0.00 | F185: 0.00 | H185: 0.00 | J185: 0.00 | K185: 0.00 | L185: 0.00 | M185: 0.00
A186: =Sheet1!F180 -> SCT202 | B186: =Sheet1!G180 -> SCITT/Trainee Salaries Inc | C186: =Sheet1!H180 -> 0.00 | D186: =Sheet1!I180 -> 0.00 | F186: 0.00 | H186: 0.00 | J186: 0.00 | K186: 0.00 | L186: 0.00 | M186: 0.00
A187: =Sheet1!F181 -> SCT203 | B187: =Sheet1!G181 -> SCITT Salaries-Income | C187: =Sheet1!H181 -> 0.00 | D187: =Sheet1!I181 -> 0.00 | F187: 0.00 | H187: 0.00 | J187: 0.00 | K187: 0.00 | L187: 0.00 | M187: 0.00
A188: =Sheet1!F182 -> SCT204 | B188: =Sheet1!G182 -> SCITT Trv Exps/Repro | C188: =Sheet1!H182 -> 0.00 | D188: =Sheet1!I182 -> 0.00 | F188: 0.00 | H188: 0.00 | J188: 0.00 | K188: 0.00 | L188: 0.00 | M188: 0.00
A189: =Sheet1!F183 -> SCT205 | B189: =Sheet1!G183 -> SCITT Salaries-Ex | C189: =Sheet1!H183 -> 0.00 | D189: =Sheet1!I183 -> 0.00 | F189: 0.00 | H189: 0.00 | J189: 0.00 | K189: 0.00 | L189: 0.00 | M189: 0.00
A190: =Sheet1!F184 -> SFLAC | B190: =Sheet1!G184 -> SF-Looked After Children | C190: =Sheet1!H184 -> 7,972.00 | D190: =Sheet1!I184 -> 2,976.08 | F190: 0.00 | H190: =D190 -> 2976.08 | J190: 0.00 | K190: 0.00 | L190: 7,972.00 | M190: 0.00
A191: =Sheet1!F185 -> SG102 | B191: =Sheet1!G185 -> Sportivate Income | C191: =Sheet1!H185 -> 0.00 | D191: =Sheet1!I185 -> 0.00 | F191: 0.00 | H191: 0.00 | J191: 0.00 | K191: 0.00 | L191: 0.00 | M191: 0.00
A192: =Sheet1!F186 -> SG150 | B192: =Sheet1!G186 -> School Games | C192: =Sheet1!H186 -> 12,821.00 | D192: =Sheet1!I186 -> 11,617.29 | F192: 0.00 | H192: =D192 -> 11617.29 | J192: 0.00 | K192: 0.00 | L192: 12,821.00 | M192: 0.00
A193: =Sheet1!F187 -> SG150A | B193: =Sheet1!G187 -> SGO Salary Income | C193: =Sheet1!H187 -> -23,800.00 | D193: =Sheet1!I187 -> 0.00 | F193: 0.00 | H193: 0.00 | J193: 0.00 | K193: 0.00 | L193: -23,800.00 | M193: 0.00
A194: =Sheet1!F188 -> SG151 | B194: =Sheet1!G188 -> Sportivate Expenditure | C194: =Sheet1!H188 -> 252.00 | D194: =Sheet1!I188 -> 7.00 | F194: 0.00 | H194: 0.00 | J194: 7.00 | K194: 0.00 | L194: 245.00 | M194: 7.00
A195: =Sheet1!F189 -> SG152 | B195: =Sheet1!G189 -> School GSLA | C195: =Sheet1!H189 -> 0.00 | D195: =Sheet1!I189 -> 0.00 | F195: 0.00 | H195: 0.00 | J195: 0.00 | K195: 0.00 | L195: 0.00 | M195: 0.00
A196: =Sheet1!F190 -> SG152A | B196: =Sheet1!G190 -> School Games-SLA Income | C196: =Sheet1!H190 -> 0.00 | D196: =Sheet1!I190 -> 0.00 | F196: 0.00 | H196: 0.00 | J196: 0.00 | K196: 0.00 | L196: 0.00 | M196: 0.00
A197: =Sheet1!F191 -> TR901 | B197: =Sheet1!G191 -> Wicked - 9.10.19 | C197: =Sheet1!H191 -> 0.00 | D197: =Sheet1!I191 -> 0.00 | F197: 0.00 | H197: 0.00 | J197: 0.00 | K197: 0.00 | L197: 0.00 | M197: 0.00
A198: =Sheet1!F192 -> TR902 | B198: =Sheet1!G192 -> Sports Science Taster Day 7.10.1 | C198: =Sheet1!H192 -> 0.00 | D198: =Sheet1!I192 -> 0.00 | F198: 0.00 | H198: 0.00 | J198: 0.00 | K198: 0.00 | L198: 0.00 | M198: 0.00
A199: =Sheet1!F193 -> TR903 | B199: =Sheet1!G193 -> Year 11 Prom 2020 | C199: =Sheet1!H193 -> 3,431.00 | D199: =Sheet1!I193 -> 1,909.72 | F199: 0.00 | H199: =D199 -> 1909.72 | J199: 0.00 | K199: 0.00 | L199: 3,431.00 | M199: 0.00
A200: =Sheet1!F194 -> TR904 | B200: =Sheet1!G194 -> Woman in Black -14.11.19 | C200: =Sheet1!H194 -> 0.00 | D200: =Sheet1!I194 -> 0.00 | F200: 0.00 | H200: 0.00 | J200: 0.00 | K200: 0.00 | L200: 0.00 | M200: 0.00
A201: =Sheet1!F195 -> TR905 | B201: =Sheet1!G195 -> Ski Trip 2020 | C201: =Sheet1!H195 -> 0.00 | D201: =Sheet1!I195 -> 0.00 | F201: 0.00 | H201: 0.00 | J201: 0.00 | K201: 0.00 | L201: 0.00 | M201: 0.00
A202: =Sheet1!F196 -> TR906 | B202: =Sheet1!G196 -> Iceland 2020 | C202: =Sheet1!H196 -> 0.00 | D202: =Sheet1!I196 -> 0.00 | F202: 0.00 | H202: 0.00 | J202: 0.00 | K202: 0.00 | L202: 0.00 | M202: 0.00
A203: =Sheet1!F197 -> TR907 | B203: =Sheet1!G197 -> Jack the Ripper - 17.10.19 | C203: =Sheet1!H197 -> 0.00 | D203: =Sheet1!I197 -> 0.00 | F203: 0.00 | H203: 0.00 | J203: 0.00 | K203: 0.00 | L203: 0.00 | M203: 0.00
A204: =Sheet1!F198 -> TR908 | B204: =Sheet1!G198 -> New York/Washington March '21 | C204: =Sheet1!H198 -> 0.00 | D204: =Sheet1!I198 -> 0.00 | F204: 0.00 | H204: 0.00 | J204: 0.00 | K204: 0.00 | L204: 0.00 | M204: 0.00
A205: =Sheet1!F199 -> TR909 | B205: =Sheet1!G199 -> Tate Modern 16.11.18 (Year 11) | C205: =Sheet1!H199 -> 0.00 | D205: =Sheet1!I199 -> 0.00 | F205: 0.00 | H205: 0.00 | J205: 0.00 | K205: 0.00 | L205: 0.00 | M205: 0.00
... 53 more rows

Sheet Summary
B2: Estimated Year End Balance Summary
C3: This summary can be used to assist academies in reporting the Estimated Year End Revenue and Capital Balances to the Governors. It can also be used to estimate the total income and expenditure for completing the Budget Forecast Return .
C7: Estimated Revenue Balances as at 31/08/17
C9: Anticipated Cost Centre Underspends (excluding Contingency cost centres) | J9: =SUMIF(Calculator!$E$17:$E$258,"",Calculator!$J$17:$J$258) -> 335627.80
C11: Anticipated Cost Centre Overspends | J11: =SUMIF(Calculator!$E$17:$E$258,"",Calculator!$K$17:$K$258) -> 232590.32
C13: Anticipated Unspent Standards Fund Grants
C15: Anticipated General (un-earmarked) contingency balance | J15: =SUMIF(Calculator!$E$17:$E$258,"G",Calculator!$J$17:$J$258) -> 0.00
C17: Balances on Contingency cost centres earmarked for expenditure after 31/03/13 | J17: =SUMIF(Calculator!$E$17:$E$258,"E",Calculator!$J$17:$J$258) -> 0.00
C19: Anticipated Cluster/Consortium Balance | J19: =SUMIF(Calculator!$E$17:$E$258,"T",Calculator!$J$17:$J$258)-SUMIF(Calculator!$E$17:$E$258,"T",Calculator!$K$17:$K$258) -> 0.00
C21: Estimated 2016-17 Year End Revenue Balance | J21: =J9-J11+J13+J15+J17+J19 -> 103037.48
C25: Estimated 2016-17 Year End Capital Balance | J25: =SUMIF(Calculator!$E$17:$E$258,"C",Calculator!$J$17:$J$258)-SUMIF(Calculator!$E$17:$E$258,"C",Calculator!$K$17:$K$258) -> 0.00

Sheet Sheet1
A3: Please do not enter any data into this page or it is very likely that the macros will fail to run correctly and it will be necessary to download a fresh copy of this spreadsheet!
A10: Cost Centre Number | B10: Cost Centre Name | C10: Allocation | D10: Balance Remaining | F10: Cost Centre Number | G10: Cost Centre Name | H10: Allocation | I10: Balance Remaining | J10: Cost CentreType: | K10: Additional Income due (not on report) | L10: Additional Income: Notes | M10: Additional Expenditure due (not on report) | N10: Additional Expenditure: Notes
A11: 0 | B11: 0 | C11: 0.00 | D11: 0.00 | F11: =Data!B2 -> 101 | G11: =Data!C2 -> Admin/Clerical Staff Costs | H11: =Data!D2 -> 582920.00 | I11: =Data!H2 -> -28105.23 | K11: 0 | M11: 0
A12: 0 | B12: 0 | C12: 0.00 | D12: 0.00 | F12: =Data!B3 -> 102 | G12: =Data!C3 -> Catering Staff | H12: =Data!D3 -> 0.00 | I12: =Data!H3 -> 0.00 | K12: 0 | M12: 0
A13: 0 | B13: 0 | C13: 0.00 | D13: 0.00 | F13: =Data!B4 -> 103 | G13: =Data!C4 -> Foreign Assistant | H13: =Data!D4 -> 0.00 | I13: =Data!H4 -> 0.00 | K13: 0 | M13: 0
A14: 0 | B14: 0 | C14: 0.00 | D14: 0.00 | F14: =Data!B5 -> 104 | G14: =Data!C5 -> Vending Staff | H14: =Data!D5 -> 0.00 | I14: =Data!H5 -> 0.00 | K14: 0 | M14: 0
A15: 0 | B15: 0 | C15: 0.00 | D15: 0.00 | F15: =Data!B6 -> 105 | G15: =Data!C6 -> Premises Staff | H15: =Data!D6 -> 169494.00 | I15: =Data!H6 -> 287.08 | K15: 0 | M15: 0
A16: 0 | B16: 0 | C16: 0.00 | D16: 0.00 | F16: =Data!B7 -> 106 | G16: =Data!C7 -> Midday Supervisors | H16: =Data!D7 -> 4100.00 | I16: =Data!H7 -> 320.28 | K16: 0 | M16: 0
A17: 0 | B17: 0 | C17: 0.00 | D17: 0.00 | F17: =Data!B8 -> 107 | G17: =Data!C8 -> Music Peri Teachers | H17: =Data!D8 -> 0.00 | I17: =Data!H8 -> 0.00 | K17: 0 | M17: 0
A18: 0 | B18: 0 | C18: 0.00 | D18: 0.00 | F18: =Data!B9 -> 108 | G18: =Data!C9 -> Teachers-Main Scale | H18: =Data!D9 -> 3260397.00 | I18: =Data!H9 -> -40906.05 | K18: 0 | M18: 0
A19: 0 | B19: 0 | C19: 0.00 | D19: 0.00 | F19: =Data!B10 -> 112 | G19: =Data!C10 -> Leadership | H19: =Data!D10 -> 903542.00 | I19: =Data!H10 -> 1425.98 | K19: 0 | M19: 0
A20: 0 | B20: 0 | C20: 0.00 | D20: 0.00 | F20: =Data!B11 -> 113 | G20: =Data!C11 -> Unqual Teachers | H20: =Data!D11 -> 45162.00 | I20: =Data!H11 -> -330.70 | K20: 0 | M20: 0
A21: 0 | B21: 0 | C21: 0.00 | D21: 0.00 | F21: =Data!B12 -> 114 | G21: =Data!C12 -> Cover Supervisors | H21: =Data!D12 -> 21624.00 | I21: =Data!H12 -> 34.69 | K21: 0 | M21: 0
A22: 0 | B22: 0 | C22: 0.00 | D22: 0.00 | F22: =Data!B13 -> 115 | G22: =Data!C13 -> Pastoral Staff | H22: =Data!D13 -> 382270.00 | I22: =Data!H13 -> 1528.41 | K22: 0 | M22: 0
A23: 0 | B23: 0 | C23: 0.00 | D23: 0.00 | F23: =Data!B14 -> 116 | G23: =Data!C14 -> Dept Technicians | H23: =Data!D14 -> 108466.00 | I23: =Data!H14 -> 171.64 | K23: 0 | M23: 0
A24: 0 | B24: 0 | C24: 0.00 | D24: 0.00 | F24: =Data!B15 -> 117 | G24: =Data!C15 -> LSA | H24: =Data!D15 -> 176943.00 | I24: =Data!H15 -> 24987.54 | K24: 0 | M24: 0
A25: 0 | B25: 0 | C25: 0.00 | D25: 0.00 | F25: =Data!B16 -> 118 | G25: =Data!C16 -> IT Technicians | H25: =Data!D16 -> 75954.00 | I25: =Data!H16 -> -53.69 | K25: 0 | M25: 0
A26: 0 | B26: 0 | C26: 0.00 | D26: 0.00 | F26: =Data!B17 -> 120 | G26: =Data!C17 -> Science Technicians | H26: =Data!D17 -> 83803.00 | I26: =Data!H17 -> 10189.30 | K26: 0 | M26: 0
A27: 0 | B27: 0 | C27: 0.00 | D27: 0.00 | F27: =Data!B18 -> 121 | G27: =Data!C18 -> Library Staff | H27: =Data!D18 -> 33974.00 | I27: =Data!H18 -> 1047.34 | K27: 0 | M27: 0
A28: 0 | B28: 0 | C28: 0.00 | D28: 0.00 | F28: =Data!B19 -> 122 | G28: =Data!C19 -> Student Services | H28: =Data!D19 -> 42956.00 | I28: =Data!H19 -> 296.98 | K28: 0 | M28: 0
A29: 0 | B29: 0 | C29: 0.00 | D29: 0.00 | F29: =Data!B20 -> 150 | G29: =Data!C20 -> Supply Cost | H29: =Data!D20 -> 20000.00 | I29: =Data!H20 -> -12187.00 | K29: 0 | M29: 0
A30: 0 | B30: 0 | C30: 0.00 | D30: 0.00 | F30: =Data!B21 -> 151 | G30: =Data!C21 -> Other Staff Cost | H30: =Data!D21 -> 5000.00 | I30: =Data!H21 -> 1171.40 | K30: 0 | M30: 0
A31: 0 | B31: 0 | C31: 0.00 | D31: 0.00 | F31: =Data!B22 -> 158 | G31: =Data!C22 -> Pension Deficiency | H31: =Data!D22 -> 0.00 | I31: =Data!H22 -> 0.00 | K31: 0 | M31: 0
A32: 0 | B32: 0 | C32: 0.00 | D32: 0.00 | F32: =Data!B23 -> 199 | G32: =Data!C23 -> Other LA Income | H32: =Data!D23 -> -30100.00 | I32: =Data!H23 -> -14225.00 | K32: 0 | M32: 0
A33: 0 | B33: 0 | C33: 0.00 | D33: 0.00 | F33: =Data!B24 -> 200 | G33: =Data!C24 -> ESFA Income | H33: =Data!D24 -> -6703119.00 | I33: =Data!H24 -> 12522.89 | K33: 0 | M33: 0
A34: 0 | B34: 0 | C34: 0.00 | D34: 0.00 | F34: =Data!B25 -> 201 | G34: =Data!C25 -> LEA Income | H34: =Data!D25 -> -162307.00 | I34: =Data!H25 -> 40349.00 | K34: 0 | M34: 0
A35: 0 | B35: 0 | C35: 0.00 | D35: 0.00 | F35: =Data!B26 -> 202 | G35: =Data!C26 -> Bwt Fwd - Restricted Fund | H35: =Data!D26 -> 0.00 | I35: =Data!H26 -> 0.00 | K35: 0 | M35: 0
A36: 0 | B36: 0 | C36: 0.00 | D36: 0.00 | F36: =Data!B27 -> 203 | G36: =Data!C27 -> Bwt Fwd - Unrestricted | H36: =Data!D27 -> -440270.00 | I36: =Data!H27 -> -440270.00 | K36: 0 | M36: 0
A37: 0 | B37: 0 | C37: 0.00 | D37: 0.00 | F37: =Data!B28 -> 217 | G37: =Data!C28 -> Donations Income | H37: =Data!D28 -> 0.00 | I37: =Data!H28 -> 0.00 | K37: 0 | M37: 0
A38: 0 | B38: 0 | C38: 0.00 | D38: 0.00 | F38: =Data!B29 -> 251 | G38: =Data!C29 -> EFA Capital Maint-Roofing-Inc | H38: =Data!D29 -> 0.00 | I38: =Data!H29 -> 0.00 | K38: 0 | M38: 0
A39: 0 | B39: 0 | C39: 0.00 | D39: 0.00 | F39: =Data!B30 -> 252 | G39: =Data!C30 -> EFA Capital Cladding 17 Income | H39: =Data!D30 -> 0.00 | I39: =Data!H30 -> 0.00 | K39: 0 | M39: 0
A40: 0 | B40: 0 | C40: 0.00 | D40: 0.00 | F40: =Data!B31 -> 253 | G40: =Data!C31 -> EFA Capital-Roofing 17-Income | H40: =Data!D31 -> 0.00 | I40: =Data!H31 -> 0.00 | K40: 0 | M40: 0
A41: 0 | B41: 0 | C41: 0.00 | D41: 0.00 | F41: =Data!B32 -> 254 | G41: =Data!C32 -> EFA Capital Windows 2015 Income | H41: =Data!D32 -> 0.00 | I41: =Data!H32 -> 0.00 | K41: 0 | M41: 0
A42: 0 | B42: 0 | C42: 0.00 | D42: 0.00 | F42: =Data!B33 -> 256 | G42: =Data!C33 -> EFA Capital Maint Pipes 2014-Inc | H42: =Data!D33 -> 0.00 | I42: =Data!H33 -> 0.00 | K42: 0 | M42: 0
A43: 0 | B43: 0 | C43: 0.00 | D43: 0.00 | F43: =Data!B34 -> 257 | G43: =Data!C34 -> EFA Capital-Pipes 16-17 Income | H43: =Data!D34 -> 0.00 | I43: =Data!H34 -> 0.00 | K43: 0 | M43: 0
A44: 0 | B44: 0 | C44: 0.00 | D44: 0.00 | F44: =Data!B35 -> 258 | G44: =Data!C35 -> ESFA Capital-Fire Safety 19-Inc | H44: =Data!D35 -> -45828.00 | I44: =Data!H35 -> -1.00 | K44: 0 | M44: 0
A45: 0 | B45: 0 | C45: 0.00 | D45: 0.00 | F45: =Data!B36 -> 299 | G45: =Data!C36 -> Contingency - Unrestricted | H45: =Data!D36 -> 90419.00 | I45: =Data!H36 -> 90419.00 | K45: 0 | M45: 0
A46: 0 | B46: 0 | C46: 0.00 | D46: 0.00 | F46: =Data!B37 -> 300 | G46: =Data!C37 -> Contingency Restricted | H46: =Data!D37 -> 0.00 | I46: =Data!H37 -> 0.00 | K46: 0 | M46: 0
A47: 0 | B47: 0 | C47: 0.00 | D47: 0.00 | F47: =Data!B38 -> 301 | G47: =Data!C38 -> Art | H47: =Data!D38 -> 3950.00 | I47: =Data!H38 -> 571.49 | K47: 0 | M47: 0
A48: 0 | B48: 0 | C48: 0.00 | D48: 0.00 | F48: =Data!B39 -> 302 | G48: =Data!C39 -> Performing Arts Professionals | H48: =Data!D39 -> 2550.00 | I48: =Data!H39 -> 2098.61 | K48: 0 | M48: 0
A49: 0 | B49: 0 | C49: 0.00 | D49: 0.00 | F49: =Data!B40 -> 303 | G49: =Data!C40 -> Drama | H49: =Data!D40 -> 1600.00 | I49: =Data!H40 -> 371.92 | K49: 0 | M49: 0
A50: 0 | B50: 0 | C50: 0.00 | D50: 0.00 | F50: =Data!B41 -> 303A | G50: =Data!C41 -> Drama Productions | H50: =Data!D41 -> 5517.00 | I50: =Data!H41 -> 2404.08 | K50: 0 | M50: 0
A51: 0 | B51: 0 | C51: 0.00 | D51: 0.00 | F51: =Data!B42 -> 304 | G51: =Data!C42 -> Music | H51: =Data!D42 -> 3250.00 | I51: =Data!H42 -> 20.00 | K51: 0 | M51: 0
A52: 0 | B52: 0 | C52: 0.00 | D52: 0.00 | F52: =Data!B43 -> 304A | G52: =Data!C43 -> Music Productions | H52: =Data!D43 -> 3252.00 | I52: =Data!H43 -> 1559.62 | K52: 0 | M52: 0
A53: 0 | B53: 0 | C53: 0.00 | D53: 0.00 | F53: =Data!B44 -> 305 | G53: =Data!C44 -> Creative Writing | H53: =Data!D44 -> 0.00 | I53: =Data!H44 -> 0.00 | K53: 0 | M53: 0
A54: 0 | B54: 0 | C54: 0.00 | D54: 0.00 | F54: =Data!B45 -> 306 | G54: =Data!C45 -> English | H54: =Data!D45 -> 9100.00 | I54: =Data!H45 -> -5915.56 | K54: 0 | M54: 0
A55: 0 | B55: 0 | C55: 0.00 | D55: 0.00 | F55: =Data!B46 -> 307 | G55: =Data!C46 -> Modern Languages | H55: =Data!D46 -> 2550.00 | I55: =Data!H46 -> 171.33 | K55: 0 | M55: 0
A56: 0 | B56: 0 | C56: 0.00 | D56: 0.00 | F56: =Data!B47 -> 308 | G56: =Data!C47 -> Humanities | H56: =Data!D47 -> 6500.00 | I56: =Data!H47 -> 607.44 | K56: 0 | M56: 0
A57: 0 | B57: 0 | C57: 0.00 | D57: 0.00 | F57: =Data!B48 -> 312 | G57: =Data!C48 -> Social Sciences | H57: =Data!D48 -> 4150.00 | I57: =Data!H48 -> 1794.12 | K57: 0 | M57: 0
A58: 0 | B58: 0 | C58: 0.00 | D58: 0.00 | F58: =Data!B49 -> 313 | G58: =Data!C49 -> Science | H58: =Data!D49 -> 12400.00 | I58: =Data!H49 -> 1904.23 | K58: 0 | M58: 0
A59: 0 | B59: 0 | C59: 0.00 | D59: 0.00 | F59: =Data!B50 -> 314 | G59: =Data!C50 -> Business Studies | H59: =Data!D50 -> 1150.00 | I59: =Data!H50 -> 249.40 | K59: 0 | M59: 0
A60: 0 | B60: 0 | C60: 0.00 | D60: 0.00 | F60: =Data!B51 -> 316 | G60: =Data!C51 -> Design & Technology | H60: =Data!D51 -> 0.00 | I60: =Data!H51 -> 0.00 | K60: 0 | M60: 0
A61: 0 | B61: 0 | C61: 0.00 | D61: 0.00 | F61: =Data!B52 -> 317 | G61: =Data!C52 -> Computer Science | H61: =Data!D52 -> 1350.00 | I61: =Data!H52 -> 869.37 | K61: 0 | M61: 0
A62: 0 | B62: 0 | C62: 0.00 | D62: 0.00 | F62: =Data!B53 -> 318 | G62: =Data!C53 -> DT & Voc Productions | H62: =Data!D53 -> 0.00 | I62: =Data!H53 -> 0.00 | K62: 0 | M62: 0
A63: 0 | B63: 0 | C63: 0.00 | D63: 0.00 | F63: =Data!B54 -> 319 | G63: =Data!C54 -> Mathematics | H63: =Data!D54 -> 10450.00 | I63: =Data!H54 -> 392.34 | K63: 0 | M63: 0
A64: 0 | B64: 0 | C64: 0.00 | D64: 0.00 | F64: =Data!B55 -> 320 | G64: =Data!C55 -> Physical Education | H64: =Data!D55 -> 7000.00 | I64: =Data!H55 -> 734.61 | K64: 0 | M64: 0
A65: 0 | B65: 0 | C65: 0.00 | D65: 0.00 | F65: =Data!B56 -> 323 | G65: =Data!C56 -> Literacy - Whole School | H65: =Data!D56 -> 400.00 | I65: =Data!H56 -> 90.44 | K65: 0 | M65: 0
A66: 0 | B66: 0 | C66: 0.00 | D66: 0.00 | F66: =Data!B57 -> 324 | G66: =Data!C57 -> Numeracy - Whole School | H66: =Data!D57 -> 550.00 | I66: =Data!H57 -> 550.00 | K66: 0 | M66: 0
A67: 0 | B67: 0 | C67: 0.00 | D67: 0.00 | F67: =Data!B58 -> 325 | G67: =Data!C58 -> PASS | H67: =Data!D58 -> 1750.00 | I67: =Data!H58 -> 283.91 | K67: 0 | M67: 0
A68: 0 | B68: 0 | C68: 0.00 | D68: 0.00 | F68: =Data!B59 -> 326 | G68: =Data!C59 -> School Shop | H68: =Data!D59 -> 0.00 | I68: =Data!H59 -> -4.00 | K68: 0 | M68: 0
A69: 0 | B69: 0 | C69: 0.00 | D69: 0.00 | F69: =Data!B60 -> 331 | G69: =Data!C60 -> STEM | H69: =Data!D60 -> 850.00 | I69: =Data!H60 -> 829.95 | K69: 0 | M69: 0
A70: 0 | B70: 0 | C70: 0.00 | D70: 0.00 | F70: =Data!B61 -> 332 | G70: =Data!C61 -> Training for Staff | H70: =Data!D61 -> 12000.00 | I70: =Data!H61 -> -4782.86 | K70: 0 | M70: 0
A71: 0 | B71: 0 | C71: 0.00 | D71: 0.00 | F71: =Data!B62 -> 333 | G71: =Data!C62 -> Media Studies | H71: =Data!D62 -> 700.00 | I71: =Data!H62 -> 389.30 | K71: 0 | M71: 0
A72: 0 | B72: 0 | C72: 0.00 | D72: 0.00 | F72: =Data!B63 -> 335 | G72: =Data!C63 -> Engineering | H72: =Data!D63 -> 3400.00 | I72: =Data!H63 -> 3307.45 | K72: 0 | M72: 0
A73: 0 | B73: 0 | C73: 0.00 | D73: 0.00 | F73: =Data!B64 -> 336 | G73: =Data!C64 -> Vocational Animals | H73: =Data!D64 -> 250.00 | I73: =Data!H64 -> 167.45 | K73: 0 | M73: 0
A74: 0 | B74: 0 | C74: 0.00 | D74: 0.00 | F74: =Data!B65 -> 337 | G74: =Data!C65 -> KS3 Pre-Vocational | H74: =Data!D65 -> 600.00 | I74: =Data!H65 -> 518.11 | K74: 0 | M74: 0
A75: 0 | B75: 0 | C75: 0.00 | D75: 0.00 | F75: =Data!B66 -> 338 | G75: =Data!C66 -> Tutorial | H75: =Data!D66 -> 0.00 | I75: =Data!H66 -> 0.00 | K75: 0 | M75: 0
A76: 0 | B76: 0 | C76: 0.00 | D76: 0.00 | F76: =Data!B67 -> 340 | G76: =Data!C67 -> Pastoral | H76: =Data!D67 -> 3000.00 | I76: =Data!H67 -> 636.14 | K76: 0 | M76: 0
A77: 0 | B77: 0 | C77: 0.00 | D77: 0.00 | F77: =Data!B68 -> 341 | G77: =Data!C68 -> Safeguarding & Support | H77: =Data!D68 -> 2750.00 | I77: =Data!H68 -> 1226.72 | K77: 0 | M77: 0
A78: 0 | B78: 0 | C78: 0.00 | D78: 0.00 | F78: =Data!B69 -> 342 | G78: =Data!C69 -> Pastoral-Sixth Fm-Raised Money | H78: =Data!D69 -> 0.00 | I78: =Data!H69 -> 0.00 | K78: 0 | M78: 0
A79: 0 | B79: 0 | C79: 0.00 | D79: 0.00 | F79: =Data!B70 -> 344 | G79: =Data!C70 -> Primary Liaison | H79: =Data!D70 -> 200.00 | I79: =Data!H70 -> 200.00 | K79: 0 | M79: 0
A80: 0 | B80: 0 | C80: 0.00 | D80: 0.00 | F80: =Data!B71 -> 346 | G80: =Data!C71 -> Sixth Form | H80: =Data!D71 -> 1500.00 | I80: =Data!H71 -> 501.37 | K80: 0 | M80: 0
A81: 0 | B81: 0 | C81: 0.00 | D81: 0.00 | F81: =Data!B72 -> 349 | G81: =Data!C72 -> Student Council | H81: =Data!D72 -> 100.00 | I81: =Data!H72 -> 500.00 | K81: 0 | M81: 0
A82: 0 | B82: 0 | C82: 0.00 | D82: 0.00 | F82: =Data!B73 -> 350 | G82: =Data!C73 -> Year 11- Work Experience | H82: =Data!D73 -> 300.00 | I82: =Data!H73 -> 398.12 | K82: 0 | M82: 0
A83: 0 | B83: 0 | C83: 0.00 | D83: 0.00 | F83: =Data!B74 -> 351 | G83: =Data!C74 -> Bursary Funding-14-19 | H83: =Data!D74 -> 17509.00 | I83: =Data!H74 -> 4731.84 | K83: 0 | M83: 0
A84: 0 | B84: 0 | C84: 0.00 | D84: 0.00 | F84: =Data!B75 -> 354 | G84: =Data!C75 -> Pupil Premium | H84: =Data!D75 -> 19743.00 | I84: =Data!H75 -> 2615.92 | K84: 0 | M84: 0
A85: 0 | B85: 0 | C85: 0.00 | D85: 0.00 | F85: =Data!B76 -> 354A | G85: =Data!C76 -> Pupil Premium-Catch Up | H85: =Data!D76 -> 6543.00 | I85: =Data!H76 -> 6543.00 | K85: 0 | M85: 0
A86: 0 | B86: 0 | C86: 0.00 | D86: 0.00 | F86: =Data!B77 -> 355 | G86: =Data!C77 -> Pupil Premium Staffing | H86: =Data!D77 -> 138838.00 | I86: =Data!H77 -> 0.00 | K86: 0 | M86: 0
A87: 0 | B87: 0 | C87: 0.00 | D87: 0.00 | F87: =Data!B78 -> 357 | G87: =Data!C78 -> Stretch & Challenge | H87: =Data!D78 -> 0.00 | I87: =Data!H78 -> 0.00 | K87: 0 | M87: 0
A88: 0 | B88: 0 | C88: 0.00 | D88: 0.00 | F88: =Data!B79 -> 358 | G88: =Data!C79 -> Careers | H88: =Data!D79 -> 14600.00 | I88: =Data!H79 -> 3709.15 | K88: 0 | M88: 0
A89: 0 | B89: 0 | C89: 0.00 | D89: 0.00 | F89: =Data!B80 -> 360 | G89: =Data!C80 -> Do not use | H89: =Data!D80 -> 0.00 | I89: =Data!H80 -> 0.00 | K89: 0 | M89: 0
A90: 0 | B90: 0 | C90: 0.00 | D90: 0.00 | F90: =Data!B81 -> 365 | G90: =Data!C81 -> Cricket School | H90: =Data!D81 -> 3500.00 | I90: =Data!H81 -> 554.28 | K90: 0 | M90: 0
A91: 0 | B91: 0 | C91: 0.00 | D91: 0.00 | F91: =Data!B82 -> 366 | G91: =Data!C82 -> Football Academy | H91: =Data!D82 -> 20700.00 | I91: =Data!H82 -> 2360.30 | K91: 0 | M91: 0
A92: 0 | B92: 0 | C92: 0.00 | D92: 0.00 | F92: =Data!B83 -> 367 | G92: =Data!C83 -> Duke of Edinburgh Award | H92: =Data!D83 -> 1064.00 | I92: =Data!H83 -> 1061.00 | K92: 0 | M92: 0
A93: 0 | B93: 0 | C93: 0.00 | D93: 0.00 | F93: =Data!B84 -> 369 | G93: =Data!C84 -> School Improvement | H93: =Data!D84 -> 27000.00 | I93: =Data!H84 -> 2872.28 | K93: 0 | M93: 0
A94: 0 | B94: 0 | C94: 0.00 | D94: 0.00 | F94: =Data!B85 -> 370 | G94: =Data!C85 -> School Improvement - DFC | H94: =Data!D85 -> 72932.00 | I94: =Data!H85 -> -20290.06 | K94: 0 | M94: 0
A95: 0 | B95: 0 | C95: 0.00 | D95: 0.00 | F95: =Data!B86 -> 502 | G95: =Data!C86 -> Catering Maintenance | H95: =Data!D86 -> 12500.00 | I95: =Data!H86 -> -16212.90 | K95: 0 | M95: 0
A96: 0 | B96: 0 | C96: 0.00 | D96: 0.00 | F96: =Data!B87 -> 503 | G96: =Data!C87 -> Communications-Telephone/Fax | H96: =Data!D87 -> 12000.00 | I96: =Data!H87 -> -4611.42 | K96: 0 | M96: 0
A97: 0 | B97: 0 | C97: 0.00 | D97: 0.00 | F97: =Data!B88 -> 504 | G97: =Data!C88 -> Departmental Services | H97: =Data!D88 -> 0.00 | I97: =Data!H88 -> 9472.17 | K97: 0 | M97: 0
A98: 0 | B98: 0 | C98: 0.00 | D98: 0.00 | F98: =Data!B89 -> 505 | G98: =Data!C89 -> Exam Fees/Costs | H98: =Data!D89 -> 125000.00 | I98: =Data!H89 -> 16186.20 | K98: 0 | M98: 0
A99: 0 | B99: 0 | C99: 0.00 | D99: 0.00 | F99: =Data!B90 -> 506 | G99: =Data!C90 -> First Aid | H99: =Data!D90 -> 450.00 | I99: =Data!H90 -> 28.75 | K99: 0 | M99: 0
A100: 0 | B100: 0 | C100: 0.00 | D100: 0.00 | F100: =Data!B91 -> 508 | G100: =Data!C91 -> Combined Cadet Force | H100: =Data!D91 -> 2946.00 | I100: =Data!H91 -> -995.41 | K100: 0 | M100: 0
A101: 0 | B101: 0 | C101: 0.00 | D101: 0.00 | F101: =Data!B92 -> 509 | G101: =Data!C92 -> Jack Petchey Foundation Awards | H101: =Data!D92 -> 1601.00 | I101: =Data!H92 -> 2636.41 | K101: 0 | M101: 0
A102: 0 | B102: 0 | C102: 0.00 | D102: 0.00 | F102: =Data!B93 -> 510 | G102: =Data!C93 -> Library | H102: =Data!D93 -> 2500.00 | I102: =Data!H93 -> 299.76 | K102: 0 | M102: 0
A103: 0 | B103: 0 | C103: 0.00 | D103: 0.00 | F103: =Data!B94 -> 512 | G103: =Data!C94 -> Production Maintenance | H103: =Data!D94 -> 24.00 | I103: =Data!H94 -> 78.40 | K103: 0 | M103: 0
A104: 0 | B104: 0 | C104: 0.00 | D104: 0.00 | F104: =Data!B95 -> 513 | G104: =Data!C95 -> Minibus Expenditure | H104: =Data!D95 -> 20500.00 | I104: =Data!H95 -> 1658.57 | K104: 0 | M104: 0
A105: 0 | B105: 0 | C105: 0.00 | D105: 0.00 | F105: =Data!B96 -> 514 | G105: =Data!C96 -> Music Tuition | H105: =Data!D96 -> 0.00 | I105: =Data!H96 -> 2936.21 | K105: 0 | M105: 0
A106: 0 | B106: 0 | C106: 0.00 | D106: 0.00 | F106: =Data!B97 -> 515 | G106: =Data!C97 -> Office Expenses-Admin | H106: =Data!D97 -> 3000.00 | I106: =Data!H97 -> 251.35 | K106: 0 | M106: 0
A107: 0 | B107: 0 | C107: 0.00 | D107: 0.00 | F107: =Data!B98 -> 516 | G107: =Data!C98 -> Other Income | H107: =Data!D98 -> -10000.00 | I107: =Data!H98 -> 12405.71 | K107: 0 | M107: 0
A108: 0 | B108: 0 | C108: 0.00 | D108: 0.00 | F108: =Data!B99 -> 517 | G108: =Data!C99 -> Hospitality Costs | H108: =Data!D99 -> 3000.00 | I108: =Data!H99 -> 1569.84 | K108: 0 | M108: 0
A109: 0 | B109: 0 | C109: 0.00 | D109: 0.00 | F109: =Data!B100 -> 518 | G109: =Data!C100 -> Postage | H109: =Data!D100 -> 3550.00 | I109: =Data!H100 -> 17.00 | K109: 0 | M109: 0
A110: 0 | B110: 0 | C110: 0.00 | D110: 0.00 | F110: =Data!B101 -> 519 | G110: =Data!C101 -> Professional Fees-School | H110: =Data!D101 -> 62000.00 | I110: =Data!H101 -> 6904.09 | K110: 0 | M110: 0
A111: 0 | B111: 0 | C111: 0.00 | D111: 0.00 | F111: =Data!B102 -> 520 | G111: =Data!C102 -> Pupil Travel | H111: =Data!D102 -> 0.00 | I111: =Data!H102 -> 156.00 | K111: 0 | M111: 0
A112: 0 | B112: 0 | C112: 0.00 | D112: 0.00 | F112: =Data!B103 -> 522 | G112: =Data!C103 -> Irrecoverable VAT | H112: =Data!D103 -> 2500.00 | I112: =Data!H103 -> -321.77 | K112: 0 | M112: 0
A113: 0 | B113: 0 | C113: 0.00 | D113: 0.00 | F113: =Data!B104 -> 523 | G113: =Data!C104 -> Sports & Coaching Services | H113: =Data!D104 -> 6000.00 | I113: =Data!H104 -> 1159.77 | K113: 0 | M113: 0
A114: 0 | B114: 0 | C114: 0.00 | D114: 0.00 | F114: =Data!B105 -> 526 | G114: =Data!C105 -> Staff Recruitment/ Advertising | H114: =Data!D105 -> 12250.00 | I114: =Data!H105 -> 4464.72 | K114: 0 | M114: 0
A115: 0 | B115: 0 | C115: 0.00 | D115: 0.00 | F115: =Data!B106 -> 527 | G115: =Data!C106 -> Marketing-Headteacher | H115: =Data!D106 -> 5000.00 | I115: =Data!H106 -> 2096.27 | K115: 0 | M115: 0
A116: 0 | B116: 0 | C116: 0.00 | D116: 0.00 | F116: =Data!B107 -> 531 | G116: =Data!C107 -> Pupil Exclusion/Referral | H116: =Data!D107 -> 17191.00 | I116: =Data!H107 -> 0.85 | K116: 0 | M116: 0
A117: 0 | B117: 0 | C117: 0.00 | D117: 0.00 | F117: =Data!B108 -> 532 | G117: =Data!C108 -> Interventions | H117: =Data!D108 -> 500.00 | I117: =Data!H108 -> 400.33 | K117: 0 | M117: 0
A118: 0 | B118: 0 | C118: 0.00 | D118: 0.00 | F118: =Data!B109 -> 533 | G118: =Data!C109 -> PREP/Parent Council | H118: =Data!D109 -> 1750.00 | I118: =Data!H109 -> 280.13 | K118: 0 | M118: 0
A119: 0 | B119: 0 | C119: 0.00 | D119: 0.00 | F119: =Data!B110 -> 534 | G119: =Data!C110 -> Research | H119: =Data!D110 -> 500.00 | I119: =Data!H110 -> 499.20 | K119: 0 | M119: 0
A120: 0 | B120: 0 | C120: 0.00 | D120: 0.00 | F120: =Data!B111 -> 536 | G120: =Data!C111 -> Field Study Support | H120: =Data!D111 -> 3500.00 | I120: =Data!H111 -> 906.86 | K120: 0 | M120: 0
A121: 0 | B121: 0 | C121: 0.00 | D121: 0.00 | F121: =Data!B112 -> 539 | G121: =Data!C112 -> Alternative Education-JIC | H121: =Data!D112 -> 12000.00 | I121: =Data!H112 -> -94.94 | K121: 0 | M121: 0
A122: 0 | B122: 0 | C122: 0.00 | D122: 0.00 | F122: =Data!B113 -> 540 | G122: =Data!C113 -> Catering Income | H122: =Data!D113 -> 0.00 | I122: =Data!H113 -> 0.00 | K122: 0 | M122: 0
A123: 0 | B123: 0 | C123: 0.00 | D123: 0.00 | F123: =Data!B114 -> 541 | G123: =Data!C114 -> NEET Intervention Activities | H123: =Data!D114 -> 0.00 | I123: =Data!H114 -> 0.00 | K123: 0 | M123: 0
A124: 0 | B124: 0 | C124: 0.00 | D124: 0.00 | F124: =Data!B115 -> 542 | G124: =Data!C115 -> .Do not use | H124: =Data!D115 -> 0.00 | I124: =Data!H115 -> 0.00 | K124: 0 | M124: 0
A125: 0 | B125: 0 | C125: 0.00 | D125: 0.00 | F125: =Data!B116 -> 544 | G125: =Data!C116 -> Governors | H125: =Data!D116 -> 2200.00 | I125: =Data!H116 -> 702.90 | K125: 0 | M125: 0
A126: 0 | B126: 0 | C126: 0.00 | D126: 0.00 | F126: =Data!B117 -> 545 | G126: =Data!C117 -> Charity Collections | H126: =Data!D117 -> 0.00 | I126: =Data!H117 -> 0.62 | K126: 0 | M126: 0
A127: 0 | B127: 0 | C127: 0.00 | D127: 0.00 | F127: =Data!B118 -> 546 | G127: =Data!C118 -> X3 Refurb Fundraising | H127: =Data!D118 -> 0.00 | I127: =Data!H118 -> 200.00 | K127: 0 | M127: 0
A128: 0 | B128: 0 | C128: 0.00 | D128: 0.00 | F128: =Data!B119 -> 548 | G128: =Data!C119 -> IT-Maintenance | H128: =Data!D119 -> 94000.00 | I128: =Data!H119 -> 2959.39 | K128: 0 | M128: 0
A129: 0 | B129: 0 | C129: 0.00 | D129: 0.00 | F129: =Data!B120 -> 550 | G129: =Data!C120 -> Parent Donations | H129: =Data!D120 -> -5250.00 | I129: =Data!H120 -> 1961.50 | K129: 0 | M129: 0
A130: 0 | B130: 0 | C130: 0.00 | D130: 0.00 | F130: =Data!B121 -> 552 | G130: =Data!C121 -> Staffroom Fund | H130: =Data!D121 -> 1025.00 | I130: =Data!H121 -> 106.17 | K130: 0 | M130: 0
A131: 0 | B131: 0 | C131: 0.00 | D131: 0.00 | F131: =Data!B122 -> 553 | G131: =Data!C122 -> SHS PTA | H131: =Data!D122 -> 0.00 | I131: =Data!H122 -> 0.00 | K131: 0 | M131: 0
A132: 0 | B132: 0 | C132: 0.00 | D132: 0.00 | F132: =Data!B123 -> 557 | G132: =Data!C123 -> SLT | H132: =Data!D123 -> 0.00 | I132: =Data!H123 -> 0.00 | K132: 0 | M132: 0
A133: 0 | B133: 0 | C133: 0.00 | D133: 0.00 | F133: =Data!B124 -> 560 | G133: =Data!C124 -> Communications-Maintenance | H133: =Data!D124 -> 1000.00 | I133: =Data!H124 -> 153.76 | K133: 0 | M133: 0
A134: 0 | B134: 0 | C134: 0.00 | D134: 0.00 | F134: =Data!B125 -> 564 | G134: =Data!C125 -> Free School Meals-Students | H134: =Data!D125 -> 42000.00 | I134: =Data!H125 -> 13479.00 | K134: 0 | M134: 0
A135: 0 | B135: 0 | C135: 0.00 | D135: 0.00 | F135: =Data!B126 -> 565 | G135: =Data!C126 -> Free School Meals-Staff | H135: =Data!D126 -> 11000.00 | I135: =Data!H126 -> 2115.93 | K135: 0 | M135: 0
A136: 0 | B136: 0 | C136: 0.00 | D136: 0.00 | F136: =Data!B127 -> 576 | G136: =Data!C127 -> Oasis Centre | H136: =Data!D127 -> 900.00 | I136: =Data!H127 -> 308.08 | K136: 0 | M136: 0
A137: 0 | B137: 0 | C137: 0.00 | D137: 0.00 | F137: =Data!B128 -> 600 | G137: =Data!C128 -> Working Environment | H137: =Data!D128 -> 5500.00 | I137: =Data!H128 -> -2441.12 | K137: 0 | M137: 0
A138: 0 | B138: 0 | C138: 0.00 | D138: 0.00 | F138: =Data!B129 -> 601 | G138: =Data!C129 -> Licences/Subscriptions/Fees | H138: =Data!D129 -> 11500.00 | I138: =Data!H129 -> 1698.12 | K138: 0 | M138: 0
A139: 0 | B139: 0 | C139: 0.00 | D139: 0.00 | F139: =Data!B130 -> 602 | G139: =Data!C130 -> Cleaning | H139: =Data!D130 -> 175600.00 | I139: =Data!H130 -> -2430.49 | K139: 0 | M139: 0
A140: 0 | B140: 0 | C140: 0.00 | D140: 0.00 | F140: =Data!B131 -> 603 | G140: =Data!C131 -> Devolved Formula Capital | H140: =Data!D131 -> 0.00 | I140: =Data!H131 -> 0.00 | K140: 0 | M140: 0
A141: 0 | B141: 0 | C141: 0.00 | D141: 0.00 | F141: =Data!B132 -> 604 | G141: =Data!C132 -> Furniture&Equipment | H141: =Data!D132 -> 2500.00 | I141: =Data!H132 -> 1419.53 | K141: 0 | M141: 0
A142: 0 | B142: 0 | C142: 0.00 | D142: 0.00 | F142: =Data!B133 -> 605 | G142: =Data!C133 -> General Buildings&Premises Maint | H142: =Data!D133 -> 54000.00 | I142: =Data!H133 -> 4026.64 | K142: 0 | M142: 0
A143: 0 | B143: 0 | C143: 0.00 | D143: 0.00 | F143: =Data!B134 -> 606 | G143: =Data!C134 -> Grounds Upkeep | H143: =Data!D134 -> 15000.00 | I143: =Data!H134 -> 79.51 | K143: 0 | M143: 0
A144: 0 | B144: 0 | C144: 0.00 | D144: 0.00 | F144: =Data!B135 -> 607 | G144: =Data!C135 -> Insurance-Buildings&Contents | H144: =Data!D135 -> 33500.00 | I144: =Data!H135 -> 10325.49 | K144: 0 | M144: 0
A145: 0 | B145: 0 | C145: 0.00 | D145: 0.00 | F145: =Data!B136 -> 608 | G145: =Data!C136 -> Rates | H145: =Data!D136 -> 34442.00 | I145: =Data!H136 -> 659.00 | K145: 0 | M145: 0
A146: 0 | B146: 0 | C146: 0.00 | D146: 0.00 | F146: =Data!B137 -> 609 | G146: =Data!C137 -> Lettings&Rents | H146: =Data!D137 -> -65000.00 | I146: =Data!H137 -> -27728.73 | K146: 0 | M146: 0
A147: 0 | B147: 0 | C147: 0.00 | D147: 0.00 | F147: =Data!B138 -> 611 | G147: =Data!C138 -> Swimming Pool | H147: =Data!D138 -> 9000.00 | I147: =Data!H138 -> 5493.53 | K147: 0 | M147: 0
A148: 0 | B148: 0 | C148: 0.00 | D148: 0.00 | F148: =Data!B139 -> 612 | G148: =Data!C139 -> Water | H148: =Data!D139 -> 30000.00 | I148: =Data!H139 -> 4309.41 | K148: 0 | M148: 0
A149: 0 | B149: 0 | C149: 0.00 | D149: 0.00 | F149: =Data!B140 -> 613 | G149: =Data!C140 -> Energy | H149: =Data!D140 -> 144000.00 | I149: =Data!H140 -> -23769.44 | K149: 0 | M149: 0
A150: 0 | B150: 0 | C150: 0.00 | D150: 0.00 | F150: =Data!B141 -> 614 | G150: =Data!C141 -> Salix Loan | H150: =Data!D141 -> 22880.00 | I150: =Data!H141 -> 1072.00 | K150: 0 | M150: 0
A151: 0 | B151: 0 | C151: 0.00 | D151: 0.00 | F151: =Data!B142 -> 614A | G151: =Data!C142 -> Salix Loan long term liability | H151: =Data!D142 -> 0.00 | I151: =Data!H142 -> 21808.00 | K151: 0 | M151: 0
A152: 0 | B152: 0 | C152: 0.00 | D152: 0.00 | F152: =Data!B143 -> 615 | G152: =Data!C143 -> Insurance Claims-Costs | H152: =Data!D143 -> 0.00 | I152: =Data!H143 -> -18521.04 | K152: 0 | M152: 0
A153: 0 | B153: 0 | C153: 0.00 | D153: 0.00 | F153: =Data!B144 -> 615A | G153: =Data!C144 -> Insurance Claims-Income | H153: =Data!D144 -> 0.00 | I153: =Data!H144 -> 18021.04 | K153: 0 | M153: 0
A154: 0 | B154: 0 | C154: 0.00 | D154: 0.00 | F154: =Data!B145 -> 616 | G154: =Data!C145 -> CIF Loan | H154: =Data!D145 -> 0.00 | I154: =Data!H145 -> 0.00 | K154: 0 | M154: 0
A155: 0 | B155: 0 | C155: 0.00 | D155: 0.00 | F155: =Data!B146 -> 616A | G155: =Data!C146 -> CIF Loan Long Term Liability | H155: =Data!D146 -> 0.00 | I155: =Data!H146 -> 0.00 | K155: 0 | M155: 0
A156: 0 | B156: 0 | C156: 0.00 | D156: 0.00 | F156: =Data!B147 -> 640 | G156: =Data!C147 -> Sports Hall Income | H156: =Data!D147 -> -35000.00 | I156: =Data!H147 -> -13165.00 | K156: 0 | M156: 0
A157: 0 | B157: 0 | C157: 0.00 | D157: 0.00 | F157: =Data!B148 -> 640A | G157: =Data!C148 -> Sports Hall Exp | H157: =Data!D148 -> 2000.00 | I157: =Data!H148 -> 835.06 | K157: 0 | M157: 0
A158: 0 | B158: 0 | C158: 0.00 | D158: 0.00 | F158: =Data!B149 -> 649 | G158: =Data!C149 -> Bwt Forward-Capital | H158: =Data!D149 -> -83298.00 | I158: =Data!H149 -> -83298.00 | K158: 0 | M158: 0
A159: 0 | B159: 0 | C159: 0.00 | D159: 0.00 | F159: =Data!B150 -> 650 | G159: =Data!C150 -> S106 Build Exp | H159: =Data!D150 -> 0.00 | I159: =Data!H150 -> 0.00 | K159: 0 | M159: 0
A160: 0 | B160: 0 | C160: 0.00 | D160: 0.00 | F160: =Data!B151 -> 651 | G160: =Data!C151 -> EFA Capital Maint-Roofing-Exp | H160: =Data!D151 -> 0.00 | I160: =Data!H151 -> 0.00 | K160: 0 | M160: 0
A161: 0 | B161: 0 | C161: 0.00 | D161: 0.00 | F161: =Data!B152 -> 652 | G161: =Data!C152 -> EFA Capital Cladding 17 Expenses | H161: =Data!D152 -> 0.00 | I161: =Data!H152 -> 0.00 | K161: 0 | M161: 0
A162: 0 | B162: 0 | C162: 0.00 | D162: 0.00 | F162: =Data!B153 -> 653 | G162: =Data!C153 -> EFA Capital Roofing 17-Exps | H162: =Data!D153 -> 0.00 | I162: =Data!H153 -> 0.00 | K162: 0 | M162: 0
A163: 0 | B163: 0 | C163: 0.00 | D163: 0.00 | F163: =Data!B154 -> 654 | G163: =Data!C154 -> EFA Windows 2015 Exp | H163: =Data!D154 -> 0.00 | I163: =Data!H154 -> 0.00 | K163: 0 | M163: 0
A164: 0 | B164: 0 | C164: 0.00 | D164: 0.00 | F164: =Data!B155 -> 656 | G164: =Data!C155 -> EFA-Capital Maint-Pipes 2014-Exp | H164: =Data!D155 -> 0.00 | I164: =Data!H155 -> 0.00 | K164: 0 | M164: 0
A165: 0 | B165: 0 | C165: 0.00 | D165: 0.00 | F165: =Data!B156 -> 657 | G165: =Data!C156 -> EFA Capital-Pipes 16-17 Expenses | H165: =Data!D156 -> 0.00 | I165: =Data!H156 -> 0.00 | K165: 0 | M165: 0
A166: 0 | B166: 0 | C166: 0.00 | D166: 0.00 | F166: =Data!B157 -> 658 | G166: =Data!C157 -> ESFA Capital-Fire Safety 19-Exp | H166: =Data!D157 -> 81935.00 | I166: =Data!H157 -> -4486.45 | K166: 0 | M166: 0
A167: 0 | B167: 0 | C167: 0.00 | D167: 0.00 | F167: =Data!B158 -> 670 | G167: =Data!C158 -> Summer Works 2013 | H167: =Data!D158 -> 0.00 | I167: =Data!H158 -> 0.00 | K167: 0 | M167: 0
A168: 0 | B168: 0 | C168: 0.00 | D168: 0.00 | F168: =Data!B159 -> 703 | G168: =Data!C159 -> Year end journals | H168: =Data!D159 -> 0.00 | I168: =Data!H159 -> 0.00 | K168: 0 | M168: 0
A169: 0 | B169: 0 | C169: 0.00 | D169: 0.00 | F169: =Data!B160 -> AGP0101 | G169: =Data!C160 -> Artificial Pitch Income | H169: =Data!D160 -> -60000.00 | I169: =Data!H160 -> -11300.00 | K169: 0 | M169: 0
A170: 0 | B170: 0 | C170: 0.00 | D170: 0.00 | F170: =Data!B161 -> AGP0201 | G170: =Data!C161 -> Artificial Pitch Expenditure | H170: =Data!D161 -> 5000.00 | I170: =Data!H161 -> 2019.95 | K170: 0 | M170: 0
A171: 0 | B171: 0 | C171: 0.00 | D171: 0.00 | F171: =Data!B162 -> AGP0202 | G171: =Data!C162 -> Artifical Pitch Sinking Fund | H171: =Data!D162 -> 105000.00 | I171: =Data!H162 -> 105000.00 | K171: 0 | M171: 0
A172: 0 | B172: 0 | C172: 0.00 | D172: 0.00 | F172: =Data!B163 -> BADDEBT | G172: =Data!C163 -> Bad Debt-A/C's Receivable | H172: =Data!D163 -> 0.00 | I172: =Data!H163 -> 0.00 | K172: 0 | M172: 0
A173: 0 | B173: 0 | C173: 0.00 | D173: 0.00 | F173: =Data!B164 -> BS410 | G173: =Data!C164 -> BESS-Pilates Course | H173: =Data!D164 -> 0.00 | I173: =Data!H164 -> 171.81 | K173: 0 | M173: 0
A174: 0 | B174: 0 | C174: 0.00 | D174: 0.00 | F174: =Data!B165 -> BS414 | G174: =Data!C165 -> BESS-Yoga Course | H174: =Data!D165 -> 0.00 | I174: =Data!H165 -> 0.00 | K174: 0 | M174: 0
A175: 0 | B175: 0 | C175: 0.00 | D175: 0.00 | F175: =Data!B166 -> GTP204 | G175: =Data!C166 -> GTP Salaries-Exp | H175: =Data!D166 -> 0.00 | I175: =Data!H166 -> 0.00 | K175: 0 | M175: 0
A176: 0 | B176: 0 | C176: 0.00 | D176: 0.00 | F176: =Data!B167 -> GTP205 | G176: =Data!C167 -> GTP-Income-Staff Salarie | H176: =Data!D167 -> 0.00 | I176: =Data!H167 -> 0.00 | K176: 0 | M176: 0
A177: 0 | B177: 0 | C177: 0.00 | D177: 0.00 | F177: =Data!B168 -> GTP207 | G177: =Data!C168 -> GTP-Income-Accomodation/Admin | H177: =Data!D168 -> 0.00 | I177: =Data!H168 -> 0.00 | K177: 0 | M177: 0
A178: 0 | B178: 0 | C178: 0.00 | D178: 0.00 | F178: =Data!B169 -> JG001 | G178: =Data!C169 -> Just Giving | H178: =Data!D169 -> 0.00 | I178: =Data!H169 -> 0.00 | K178: 0 | M178: 0
A179: 0 | B179: 0 | C179: 0.00 | D179: 0.00 | F179: =Data!B170 -> SCT201 | G179: =Data!C170 -> SCITT Accom/Admin Inc | H179: =Data!D170 -> 0.00 | I179: =Data!H170 -> 0.00 | K179: 0 | M179: 0
A180: 0 | B180: 0 | C180: 0.00 | D180: 0.00 | F180: =Data!B171 -> SCT202 | G180: =Data!C171 -> SCITT/Trainee Salaries Inc | H180: =Data!D171 -> 0.00 | I180: =Data!H171 -> 0.00 | K180: 0 | M180: 0
A181: 0 | B181: 0 | C181: 0.00 | D181: 0.00 | F181: =Data!B172 -> SCT203 | G181: =Data!C172 -> SCITT Salaries-Income | H181: =Data!D172 -> 0.00 | I181: =Data!H172 -> 0.00 | K181: 0 | M181: 0
A182: 0 | B182: 0 | C182: 0.00 | D182: 0.00 | F182: =Data!B173 -> SCT204 | G182: =Data!C173 -> SCITT Trv Exps/Repro | H182: =Data!D173 -> 0.00 | I182: =Data!H173 -> 0.00 | K182: 0 | M182: 0
A183: 0 | B183: 0 | C183: 0.00 | D183: 0.00 | F183: =Data!B174 -> SCT205 | G183: =Data!C174 -> SCITT Salaries-Ex | H183: =Data!D174 -> 0.00 | I183: =Data!H174 -> 0.00 | K183: 0 | M183: 0
A184: 0 | B184: 0 | C184: 0.00 | D184: 0.00 | F184: =Data!B175 -> SFLAC | G184: =Data!C175 -> SF-Looked After Children | H184: =Data!D175 -> 7972.00 | I184: =Data!H175 -> 2976.08 | K184: 0 | M184: 0
A185: 0 | B185: 0 | C185: 0.00 | D185: 0.00 | F185: =Data!B176 -> SG102 | G185: =Data!C176 -> Sportivate Income | H185: =Data!D176 -> 0.00 | I185: =Data!H176 -> 0.00 | K185: 0 | M185: 0
A186: 0 | B186: 0 | C186: 0.00 | D186: 0.00 | F186: =Data!B177 -> SG150 | G186: =Data!C177 -> School Games | H186: =Data!D177 -> 12821.00 | I186: =Data!H177 -> 11617.29 | K186: 0 | M186: 0
A187: 0 | B187: 0 | C187: 0.00 | D187: 0.00 | F187: =Data!B178 -> SG150A | G187: =Data!C178 -> SGO Salary Income | H187: =Data!D178 -> -23800.00 | I187: =Data!H178 -> 0.00 | K187: 0 | M187: 0
A188: 0 | B188: 0 | C188: 0.00 | D188: 0.00 | F188: =Data!B179 -> SG151 | G188: =Data!C179 -> Sportivate Expenditure | H188: =Data!D179 -> 252.00 | I188: =Data!H179 -> 7.00 | K188: 0 | M188: 0
A189: 0 | B189: 0 | C189: 0.00 | D189: 0.00 | F189: =Data!B180 -> SG152 | G189: =Data!C180 -> School GSLA | H189: =Data!D180 -> 0.00 | I189: =Data!H180 -> 0.00 | K189: 0 | M189: 0
A190: 0 | B190: 0 | C190: 0.00 | D190: 0.00 | F190: =Data!B181 -> SG152A | G190: =Data!C181 -> School Games-SLA Income | H190: =Data!D181 -> 0.00 | I190: =Data!H181 -> 0.00 | K190: 0 | M190: 0
A191: 0 | B191: 0 | C191: 0.00 | D191: 0.00 | F191: =Data!B182 -> TR901 | G191: =Data!C182 -> Wicked - 9.10.19 | H191: =Data!D182 -> 0.00 | I191: =Data!H182 -> 0.00 | K191: 0 | M191: 0
A192: 0 | B192: 0 | C192: 0.00 | D192: 0.00 | F192: =Data!B183 -> TR902 | G192: =Data!C183 -> Sports Science Taster Day 7.10.1 | H192: =Data!D183 -> 0.00 | I192: =Data!H183 -> 0.00 | K192: 0 | M192: 0
A193: 0 | B193: 0 | C193: 0.00 | D193: 0.00 | F193: =Data!B184 -> TR903 | G193: =Data!C184 -> Year 11 Prom 2020 | H193: =Data!D184 -> 3431.00 | I193: =Data!H184 -> 1909.72 | K193: 0 | M193: 0
A194: 0 | B194: 0 | C194: 0.00 | D194: 0.00 | F194: =Data!B185 -> TR904 | G194: =Data!C185 -> Woman in Black -14.11.19 | H194: =Data!D185 -> 0.00 | I194: =Data!H185 -> 0.00 | K194: 0 | M194: 0
A195: 0 | B195: 0 | C195: 0.00 | D195: 0.00 | F195: =Data!B186 -> TR905 | G195: =Data!C186 -> Ski Trip 2020 | H195: =Data!D186 -> 0.00 | I195: =Data!H186 -> 0.00 | K195: 0 | M195: 0
A196: 0 | B196: 0 | C196: 0.00 | D196: 0.00 | F196: =Data!B187 -> TR906 | G196: =Data!C187 -> Iceland 2020 | H196: =Data!D187 -> 0.00 | I196: =Data!H187 -> 0.00 | K196: 0 | M196: 0
A197: 0 | B197: 0 | C197: 0.00 | D197: 0.00 | F197: =Data!B188 -> TR907 | G197: =Data!C188 -> Jack the Ripper - 17.10.19 | H197: =Data!D188 -> 0.00 | I197: =Data!H188 -> 0.00 | K197: 0 | M197: 0
A198: 0 | B198: 0 | C198: 0.00 | D198: 0.00 | F198: =Data!B189 -> TR908 | G198: =Data!C189 -> New York/Washington March '21 | H198: =Data!D189 -> 0.00 | I198: =Data!H189 -> 0.00 | K198: 0 | M198: 0
A199: 0 | B199: 0 | C199: 0.00 | D199: 0.00 | F199: =Data!B190 -> TR909 | G199: =Data!C190 -> Tate Modern 16.11.18 (Year 11) | H199: =Data!D190 -> 0.00 | I199: =Data!H190 -> 0.00 | K199: 0 | M199: 0
A200: 0 | B200: 0 | C200: 0.00 | D200: 0.00 | F200: =Data!B191 -> TR910 | G200: =Data!C191 -> Computer Science-Disneyland '20 | H200: =Data!D191 -> 0.00 | I200: =Data!H191 -> 0.00 | K200: 0 | M200: 0
A201: 0 | B201: 0 | C201: 0.00 | D201: 0.00 | F201: =Data!B192 -> TR911 | G201: =Data!C192 -> Day in the death of Joe Egg-18.1 | H201: =Data!D192 -> 0.00 | I201: =Data!H192 -> 0.00 | K201: 0 | M201: 0
A202: 0 | B202: 0 | C202: 0.00 | D202: 0.00 | F202: =Data!B193 -> TR912 | G202: =Data!C193 -> Admin Fee / Insurance | H202: =Data!D193 -> 0.00 | I202: =Data!H193 -> 174.75 | K202: 0 | M202: 0
A203: 0 | B203: 0 | C203: 0.00 | D203: 0.00 | F203: =Data!B194 -> TR913 | G203: =Data!C194 -> Trip Contingency | H203: =Data!D194 -> 0.00 | I203: =Data!H194 -> 2035.81 | K203: 0 | M203: 0
A204: 0 | B204: 0 | C204: 0.00 | D204: 0.00 | F204: =Data!B195 -> TR914 | G204: =Data!C195 -> Trip Balances | H204: =Data!D195 -> 0.00 | I204: =Data!H195 -> 1636.29 | K204: 0 | M204: 0
A205: 0 | B205: 0 | C205: 0.00 | D205: 0.00 | F205: =Data!B196 -> TR915 | G205: =Data!C196 -> Ski 2021 | H205: =Data!D196 -> 0.00 | I205: =Data!H196 -> 0.00 | K205: 0 | M205: 0
A206: 0 | B206: 0 | C206: 0.00 | D206: 0.00 | F206: =Data!B197 -> TR916 | G206: =Data!C197 -> Sports Camp | H206: =Data!D197 -> 12147.00 | I206: =Data!H197 -> 11871.98 | K206: 0 | M206: 0
A207: 0 | B207: 0 | C207: 0.00 | D207: 0.00 | F207: =Data!B198 -> TR917 | G207: =Data!C198 -> New York - Oct. '19 | H207: =Data!D198 -> 0.00 | I207: =Data!H198 -> 0.00 | K207: 0 | M207: 0
A208: 0 | B208: 0 | C208: 0.00 | D208: 0.00 | F208: =Data!B199 -> TR918 | G208: =Data!C199 -> Matilda - 4.12.19 | H208: =Data!D199 -> 0.00 | I208: =Data!H199 -> 0.00 | K208: 0 | M208: 0
... 44 more rows
